{"text_format":"1","workbook":"xlsx","n_sheets":2,"sheets":["URL","data"],"not_rendered":{"charts":0,"images":0,"macros":1,"external_links":0,"defined_names":175,"comments":0,"pivot_tables":0},"unopened":[],"bounds":{"document_bytes":16777216,"sheet_cells":100000,"rows_first":2000,"rows_last":500,"rows_between":2000,"halvings":0,"cell_chars":16384,"cell_head_chars":4096},"cells_cut":0,"cells_raw":0,"read":"whole","date_system":"1900"}

{"sheet":"URL","index":0,"n_rows":372,"n_cols":9,"rows_kept":372,"cut":false,"hidden":false,"merged":[]}
[1959,1,1,{"$f":"+F1&G1&A1&H1&B1&I1&C1","v":"http://climate.weatheroffice.gc.ca/climateData/hourlydata_e.html?timeframe=1&Prov=XX&StationID=5415&Year=1959&Month=1&Day=1"},null,"http://climate.weatheroffice.gc.ca/climateData/hourlydata_e.html?timeframe=1&Prov=XX&StationID=5415&","Year=","&Month=","&Day="]
[{"$f":"+A1","v":1959},{"$f":"+B1","v":1},{"$f":"1+C1","v":2},{"$f":"+F2&G2&A2&H2&B2&I2&C2","v":"http://climate.weatheroffice.gc.ca/climateData/hourlydata_e.html?timeframe=1&Prov=XX&StationID=5415&Year=1959&Month=1&Day=2"},null,"http://climate.weatheroffice.gc.ca/climateData/hourlydata_e.html?timeframe=1&Prov=XX&StationID=5415&","Year=","&Month=","&Day="]
[{"$f":"+A2","v":1959},{"$f":"+B2","v":1},{"$f":"1+C2","v":3},"http://climate.weatheroffice.gc.ca/climateData/hourlydata_e.html?timeframe=1&Prov=XX&StationID=5415&Year=1959&Month=1&Day=3",null,"http://climate.weatheroffice.gc.ca/climateData/hourlydata_e.html?timeframe=1&Prov=XX&StationID=5415&","Year=","&Month=","&Day="]
[1959,1,4,"http://climate.weatheroffice.gc.ca/climateData/hourlydata_e.html?timeframe=1&Prov=XX&StationID=5415&Year=1959&Month=1&Day=4",null,"http://climate.weatheroffice.gc.ca/climateData/hourlydata_e.html?timeframe=1&Prov=XX&StationID=5415&","Year=","&Month=","&Day="]
[1959,1,5,"http://climate.weatheroffice.gc.ca/climateData/hourlydata_e.html?timeframe=1&Prov=XX&StationID=5415&Year=1959&Month=1&Day=5",null,"http://climate.weatheroffice.gc.ca/climateData/hourlydata_e.html?timeframe=1&Prov=XX&StationID=5415&","Year=","&Month=","&Day="]
[1959,1,6,"http://climate.weatheroffice.gc.ca/climateData/hourlydata_e.html?timeframe=1&Prov=XX&StationID=5415&Year=1959&Month=1&Day=6",null,"http://climate.weatheroffice.gc.ca/climateData/hourlydata_e.html?timeframe=1&Prov=XX&StationID=5415&","Year=","&Month=","&Day="]
[1959,1,7,"http://climate.weatheroffice.gc.ca/climateData/hourlydata_e.html?timeframe=1&Prov=XX&StationID=5415&Year=1959&Month=1&Day=7",null,"http://climate.weatheroffice.gc.ca/climateData/hourlydata_e.html?timeframe=1&Prov=XX&StationID=5415&","Year=","&Month=","&Day="]
[1959,1,8,"http://climate.weatheroffice.gc.ca/climateData/hourlydata_e.html?timeframe=1&Prov=XX&StationID=5415&Year=1959&Month=1&Day=8",null,"http://climate.weatheroffice.gc.ca/climateData/hourlydata_e.html?timeframe=1&Prov=XX&StationID=5415&","Year=","&Month=","&Day="]
[1959,1,9,"http://climate.weatheroffice.gc.ca/climateData/hourlydata_e.html?timeframe=1&Prov=XX&StationID=5415&Year=1959&Month=1&Day=9",null,"http://climate.weatheroffice.gc.ca/climateData/hourlydata_e.html?timeframe=1&Prov=XX&StationID=5415&","Year=","&Month=","&Day="]
[1959,1,10,"http://climate.weatheroffice.gc.ca/climateData/hourlydata_e.html?timeframe=1&Prov=XX&StationID=5415&Year=1959&Month=1&Day=10",null,"http://climate.weatheroffice.gc.ca/climateData/hourlydata_e.html?timeframe=1&Prov=XX&StationID=5415&","Year=","&Month=","&Day="]
[1959,1,11,"http://climate.weatheroffice.gc.ca/climateData/hourlydata_e.html?timeframe=1&Prov=XX&StationID=5415&Year=1959&Month=1&Day=11",null,"http://climate.weatheroffice.gc.ca/climateData/hourlydata_e.html?timeframe=1&Prov=XX&StationID=5415&","Year=","&Month=","&Day="]
[1959,1,12,"http://climate.weatheroffice.gc.ca/climateData/hourlydata_e.html?timeframe=1&Prov=XX&StationID=5415&Year=1959&Month=1&Day=12",null,"http://climate.weatheroffice.gc.ca/climateData/hourlydata_e.html?timeframe=1&Prov=XX&StationID=5415&","Year=","&Month=","&Day="]
[1959,1,13,"http://climate.weatheroffice.gc.ca/climateData/hourlydata_e.html?timeframe=1&Prov=XX&StationID=5415&Year=1959&Month=1&Day=13",null,"http://climate.weatheroffice.gc.ca/climateData/hourlydata_e.html?timeframe=1&Prov=XX&StationID=5415&","Year=","&Month=","&Day="]
[1959,1,14,"http://climate.weatheroffice.gc.ca/climateData/hourlydata_e.html?timeframe=1&Prov=XX&StationID=5415&Year=1959&Month=1&Day=14",null,"http://climate.weatheroffice.gc.ca/climateData/hourlydata_e.html?timeframe=1&Prov=XX&StationID=5415&","Year=","&Month=","&Day="]
[1959,1,15,"http://climate.weatheroffice.gc.ca/climateData/hourlydata_e.html?timeframe=1&Prov=XX&StationID=5415&Year=1959&Month=1&Day=15",null,"http://climate.weatheroffice.gc.ca/climateData/hourlydata_e.html?timeframe=1&Prov=XX&StationID=5415&","Year=","&Month=","&Day="]
[1959,1,16,"http://climate.weatheroffice.gc.ca/climateData/hourlydata_e.html?timeframe=1&Prov=XX&StationID=5415&Year=1959&Month=1&Day=16",null,"http://climate.weatheroffice.gc.ca/climateData/hourlydata_e.html?timeframe=1&Prov=XX&StationID=5415&","Year=","&Month=","&Day="]
[1959,1,17,"http://climate.weatheroffice.gc.ca/climateData/hourlydata_e.html?timeframe=1&Prov=XX&StationID=5415&Year=1959&Month=1&Day=17",null,"http://climate.weatheroffice.gc.ca/climateData/hourlydata_e.html?timeframe=1&Prov=XX&StationID=5415&","Year=","&Month=","&Day="]
[1959,1,18,"http://climate.weatheroffice.gc.ca/climateData/hourlydata_e.html?timeframe=1&Prov=XX&StationID=5415&Year=1959&Month=1&Day=18",null,"http://climate.weatheroffice.gc.ca/climateData/hourlydata_e.html?timeframe=1&Prov=XX&StationID=5415&","Year=","&Month=","&Day="]
[1959,1,19,"http://climate.weatheroffice.gc.ca/climateData/hourlydata_e.html?timeframe=1&Prov=XX&StationID=5415&Year=1959&Month=1&Day=19",null,"http://climate.weatheroffice.gc.ca/climateData/hourlydata_e.html?timeframe=1&Prov=XX&StationID=5415&","Year=","&Month=","&Day="]
[1959,1,20,"http://climate.weatheroffice.gc.ca/climateData/hourlydata_e.html?timeframe=1&Prov=XX&StationID=5415&Year=1959&Month=1&Day=20",null,"http://climate.weatheroffice.gc.ca/climateData/hourlydata_e.html?timeframe=1&Prov=XX&StationID=5415&","Year=","&Month=","&Day="]
[1959,1,21,"http://climate.weatheroffice.gc.ca/climateData/hourlydata_e.html?timeframe=1&Prov=XX&StationID=5415&Year=1959&Month=1&Day=21",null,"http://climate.weatheroffice.gc.ca/climateData/hourlydata_e.html?timeframe=1&Prov=XX&StationID=5415&","Year=","&Month=","&Day="]
[1959,1,22,"http://climate.weatheroffice.gc.ca/climateData/hourlydata_e.html?timeframe=1&Prov=XX&StationID=5415&Year=1959&Month=1&Day=22",null,"http://climate.weatheroffice.gc.ca/climateData/hourlydata_e.html?timeframe=1&Prov=XX&StationID=5415&","Year=","&Month=","&Day="]
[1959,1,23,"http://climate.weatheroffice.gc.ca/climateData/hourlydata_e.html?timeframe=1&Prov=XX&StationID=5415&Year=1959&Month=1&Day=23",null,"http://climate.weatheroffice.gc.ca/climateData/hourlydata_e.html?timeframe=1&Prov=XX&StationID=5415&","Year=","&Month=","&Day="]
[1959,1,24,"http://climate.weatheroffice.gc.ca/climateData/hourlydata_e.html?timeframe=1&Prov=XX&StationID=5415&Year=1959&Month=1&Day=24",null,"http://climate.weatheroffice.gc.ca/climateData/hourlydata_e.html?timeframe=1&Prov=XX&StationID=5415&","Year=","&Month=","&Day="]
[1959,1,25,"http://climate.weatheroffice.gc.ca/climateData/hourlydata_e.html?timeframe=1&Prov=XX&StationID=5415&Year=1959&Month=1&Day=25",null,"http://climate.weatheroffice.gc.ca/climateData/hourlydata_e.html?timeframe=1&Prov=XX&StationID=5415&","Year=","&Month=","&Day="]
[1959,1,26,"http://climate.weatheroffice.gc.ca/climateData/hourlydata_e.html?timeframe=1&Prov=XX&StationID=5415&Year=1959&Month=1&Day=26",null,"http://climate.weatheroffice.gc.ca/climateData/hourlydata_e.html?timeframe=1&Prov=XX&StationID=5415&","Year=","&Month=","&Day="]
[1959,1,27,"http://climate.weatheroffice.gc.ca/climateData/hourlydata_e.html?timeframe=1&Prov=XX&StationID=5415&Year=1959&Month=1&Day=27",null,"http://climate.weatheroffice.gc.ca/climateData/hourlydata_e.html?timeframe=1&Prov=XX&StationID=5415&","Year=","&Month=","&Day="]
[1959,1,28,"http://climate.weatheroffice.gc.ca/climateData/hourlydata_e.html?timeframe=1&Prov=XX&StationID=5415&Year=1959&Month=1&Day=28",null,"http://climate.weatheroffice.gc.ca/climateData/hourlydata_e.html?timeframe=1&Prov=XX&StationID=5415&","Year=","&Month=","&Day="]
[1959,1,29,"http://climate.weatheroffice.gc.ca/climateData/hourlydata_e.html?timeframe=1&Prov=XX&StationID=5415&Year=1959&Month=1&Day=29",null,"http://climate.weatheroffice.gc.ca/climateData/hourlydata_e.html?timeframe=1&Prov=XX&StationID=5415&","Year=","&Month=","&Day="]
[1959,1,30,"http://climate.weatheroffice.gc.ca/climateData/hourlydata_e.html?timeframe=1&Prov=XX&StationID=5415&Year=1959&Month=1&Day=30",null,"http://climate.weatheroffice.gc.ca/climateData/hourlydata_e.html?timeframe=1&Prov=XX&StationID=5415&","Year=","&Month=","&Day="]
[1959,1,31,"http://climate.weatheroffice.gc.ca/climateData/hourlydata_e.html?timeframe=1&Prov=XX&StationID=5415&Year=1959&Month=1&Day=31",null,"http://climate.weatheroffice.gc.ca/climateData/hourlydata_e.html?timeframe=1&Prov=XX&StationID=5415&","Year=","&Month=","&Day="]
[1959,2,1,"http://climate.weatheroffice.gc.ca/climateData/hourlydata_e.html?timeframe=1&Prov=XX&StationID=5415&Year=1959&Month=2&Day=1",null,"http://climate.weatheroffice.gc.ca/climateData/hourlydata_e.html?timeframe=1&Prov=XX&StationID=5415&","Year=","&Month=","&Day="]
[1959,2,2,"http://climate.weatheroffice.gc.ca/climateData/hourlydata_e.html?timeframe=1&Prov=XX&StationID=5415&Year=1959&Month=2&Day=2",null,"http://climate.weatheroffice.gc.ca/climateData/hourlydata_e.html?timeframe=1&Prov=XX&StationID=5415&","Year=","&Month=","&Day="]
[1959,2,3,"http://climate.weatheroffice.gc.ca/climateData/hourlydata_e.html?timeframe=1&Prov=XX&StationID=5415&Year=1959&Month=2&Day=3",null,"http://climate.weatheroffice.gc.ca/climateData/hourlydata_e.html?timeframe=1&Prov=XX&StationID=5415&","Year=","&Month=","&Day="]
[1959,2,4,"http://climate.weatheroffice.gc.ca/climateData/hourlydata_e.html?timeframe=1&Prov=XX&StationID=5415&Year=1959&Month=2&Day=4",null,"http://climate.weatheroffice.gc.ca/climateData/hourlydata_e.html?timeframe=1&Prov=XX&StationID=5415&","Year=","&Month=","&Day="]
[1959,2,5,"http://climate.weatheroffice.gc.ca/climateData/hourlydata_e.html?timeframe=1&Prov=XX&StationID=5415&Year=1959&Month=2&Day=5",null,"http://climate.weatheroffice.gc.ca/climateData/hourlydata_e.html?timeframe=1&Prov=XX&StationID=5415&","Year=","&Month=","&Day="]
[1959,2,6,"http://climate.weatheroffice.gc.ca/climateData/hourlydata_e.html?timeframe=1&Prov=XX&StationID=5415&Year=1959&Month=2&Day=6",null,"http://climate.weatheroffice.gc.ca/climateData/hourlydata_e.html?timeframe=1&Prov=XX&StationID=5415&","Year=","&Month=","&Day="]
[1959,2,7,"http://climate.weatheroffice.gc.ca/climateData/hourlydata_e.html?timeframe=1&Prov=XX&StationID=5415&Year=1959&Month=2&Day=7",null,"http://climate.weatheroffice.gc.ca/climateData/hourlydata_e.html?timeframe=1&Prov=XX&StationID=5415&","Year=","&Month=","&Day="]
[1959,2,8,"http://climate.weatheroffice.gc.ca/climateData/hourlydata_e.html?timeframe=1&Prov=XX&StationID=5415&Year=1959&Month=2&Day=8",null,"http://climate.weatheroffice.gc.ca/climateData/hourlydata_e.html?timeframe=1&Prov=XX&StationID=5415&","Year=","&Month=","&Day="]
[1959,2,9,"http://climate.weatheroffice.gc.ca/climateData/hourlydata_e.html?timeframe=1&Prov=XX&StationID=5415&Year=1959&Month=2&Day=9",null,"http://climate.weatheroffice.gc.ca/climateData/hourlydata_e.html?timeframe=1&Prov=XX&StationID=5415&","Year=","&Month=","&Day="]
[1959,2,10,"http://climate.weatheroffice.gc.ca/climateData/hourlydata_e.html?timeframe=1&Prov=XX&StationID=5415&Year=1959&Month=2&Day=10",null,"http://climate.weatheroffice.gc.ca/climateData/hourlydata_e.html?timeframe=1&Prov=XX&StationID=5415&","Year=","&Month=","&Day="]
[1959,2,11,"http://climate.weatheroffice.gc.ca/climateData/hourlydata_e.html?timeframe=1&Prov=XX&StationID=5415&Year=1959&Month=2&Day=11",null,"http://climate.weatheroffice.gc.ca/climateData/hourlydata_e.html?timeframe=1&Prov=XX&StationID=5415&","Year=","&Month=","&Day="]
[1959,2,12,"http://climate.weatheroffice.gc.ca/climateData/hourlydata_e.html?timeframe=1&Prov=XX&StationID=5415&Year=1959&Month=2&Day=12",null,"http://climate.weatheroffice.gc.ca/climateData/hourlydata_e.html?timeframe=1&Prov=XX&StationID=5415&","Year=","&Month=","&Day="]
[1959,2,13,"http://climate.weatheroffice.gc.ca/climateData/hourlydata_e.html?timeframe=1&Prov=XX&StationID=5415&Year=1959&Month=2&Day=13",null,"http://climate.weatheroffice.gc.ca/climateData/hourlydata_e.html?timeframe=1&Prov=XX&StationID=5415&","Year=","&Month=","&Day="]
[1959,2,14,"http://climate.weatheroffice.gc.ca/climateData/hourlydata_e.html?timeframe=1&Prov=XX&StationID=5415&Year=1959&Month=2&Day=14",null,"http://climate.weatheroffice.gc.ca/climateData/hourlydata_e.html?timeframe=1&Prov=XX&StationID=5415&","Year=","&Month=","&Day="]
[1959,2,15,"http://climate.weatheroffice.gc.ca/climateData/hourlydata_e.html?timeframe=1&Prov=XX&StationID=5415&Year=1959&Month=2&Day=15",null,"http://climate.weatheroffice.gc.ca/climateData/hourlydata_e.html?timeframe=1&Prov=XX&StationID=5415&","Year=","&Month=","&Day="]
[1959,2,16,"http://climate.weatheroffice.gc.ca/climateData/hourlydata_e.html?timeframe=1&Prov=XX&StationID=5415&Year=1959&Month=2&Day=16",null,"http://climate.weatheroffice.gc.ca/climateData/hourlydata_e.html?timeframe=1&Prov=XX&StationID=5415&","Year=","&Month=","&Day="]
[1959,2,17,"http://climate.weatheroffice.gc.ca/climateData/hourlydata_e.html?timeframe=1&Prov=XX&StationID=5415&Year=1959&Month=2&Day=17",null,"http://climate.weatheroffice.gc.ca/climateData/hourlydata_e.html?timeframe=1&Prov=XX&StationID=5415&","Year=","&Month=","&Day="]
[1959,2,18,"http://climate.weatheroffice.gc.ca/climateData/hourlydata_e.html?timeframe=1&Prov=XX&StationID=5415&Year=1959&Month=2&Day=18",null,"http://climate.weatheroffice.gc.ca/climateData/hourlydata_e.html?timeframe=1&Prov=XX&StationID=5415&","Year=","&Month=","&Day="]
[1959,2,19,"http://climate.weatheroffice.gc.ca/climateData/hourlydata_e.html?timeframe=1&Prov=XX&StationID=5415&Year=1959&Month=2&Day=19",null,"http://climate.weatheroffice.gc.ca/climateData/hourlydata_e.html?timeframe=1&Prov=XX&StationID=5415&","Year=","&Month=","&Day="]
[1959,2,20,"http://climate.weatheroffice.gc.ca/climateData/hourlydata_e.html?timeframe=1&Prov=XX&StationID=5415&Year=1959&Month=2&Day=20",null,"http://climate.weatheroffice.gc.ca/climateData/hourlydata_e.html?timeframe=1&Prov=XX&StationID=5415&","Year=","&Month=","&Day="]
[1959,2,21,"http://climate.weatheroffice.gc.ca/climateData/hourlydata_e.html?timeframe=1&Prov=XX&StationID=5415&Year=1959&Month=2&Day=21",null,"http://climate.weatheroffice.gc.ca/climateData/hourlydata_e.html?timeframe=1&Prov=XX&StationID=5415&","Year=","&Month=","&Day="]
[1959,2,22,"http://climate.weatheroffice.gc.ca/climateData/hourlydata_e.html?timeframe=1&Prov=XX&StationID=5415&Year=1959&Month=2&Day=22",null,"http://climate.weatheroffice.gc.ca/climateData/hourlydata_e.html?timeframe=1&Prov=XX&StationID=5415&","Year=","&Month=","&Day="]
[1959,2,23,"http://climate.weatheroffice.gc.ca/climateData/hourlydata_e.html?timeframe=1&Prov=XX&StationID=5415&Year=1959&Month=2&Day=23",null,"http://climate.weatheroffice.gc.ca/climateData/hourlydata_e.html?timeframe=1&Prov=XX&StationID=5415&","Year=","&Month=","&Day="]
[1959,2,24,"http://climate.weatheroffice.gc.ca/climateData/hourlydata_e.html?timeframe=1&Prov=XX&StationID=5415&Year=1959&Month=2&Day=24",null,"http://climate.weatheroffice.gc.ca/climateData/hourlydata_e.html?timeframe=1&Prov=XX&StationID=5415&","Year=","&Month=","&Day="]
[1959,2,25,"http://climate.weatheroffice.gc.ca/climateData/hourlydata_e.html?timeframe=1&Prov=XX&StationID=5415&Year=1959&Month=2&Day=25",null,"http://climate.weatheroffice.gc.ca/climateData/hourlydata_e.html?timeframe=1&Prov=XX&StationID=5415&","Year=","&Month=","&Day="]
[1959,2,26,"http://climate.weatheroffice.gc.ca/climateData/hourlydata_e.html?timeframe=1&Prov=XX&StationID=5415&Year=1959&Month=2&Day=26",null,"http://climate.weatheroffice.gc.ca/climateData/hourlydata_e.html?timeframe=1&Prov=XX&StationID=5415&","Year=","&Month=","&Day="]
[1959,2,27,"http://climate.weatheroffice.gc.ca/climateData/hourlydata_e.html?timeframe=1&Prov=XX&StationID=5415&Year=1959&Month=2&Day=27",null,"http://climate.weatheroffice.gc.ca/climateData/hourlydata_e.html?timeframe=1&Prov=XX&StationID=5415&","Year=","&Month=","&Day="]
[1959,2,28,"http://climate.weatheroffice.gc.ca/climateData/hourlydata_e.html?timeframe=1&Prov=XX&StationID=5415&Year=1959&Month=2&Day=28",null,"http://climate.weatheroffice.gc.ca/climateData/hourlydata_e.html?timeframe=1&Prov=XX&StationID=5415&","Year=","&Month=","&Day="]
[1959,2,29,"http://climate.weatheroffice.gc.ca/climateData/hourlydata_e.html?timeframe=1&Prov=XX&StationID=5415&Year=1959&Month=2&Day=29",null,"http://climate.weatheroffice.gc.ca/climateData/hourlydata_e.html?timeframe=1&Prov=XX&StationID=5415&","Year=","&Month=","&Day="]
[1959,2,30,"http://climate.weatheroffice.gc.ca/climateData/hourlydata_e.html?timeframe=1&Prov=XX&StationID=5415&Year=1959&Month=2&Day=30",null,"http://climate.weatheroffice.gc.ca/climateData/hourlydata_e.html?timeframe=1&Prov=XX&StationID=5415&","Year=","&Month=","&Day="]
[1959,2,31,"http://climate.weatheroffice.gc.ca/climateData/hourlydata_e.html?timeframe=1&Prov=XX&StationID=5415&Year=1959&Month=2&Day=31",null,"http://climate.weatheroffice.gc.ca/climateData/hourlydata_e.html?timeframe=1&Prov=XX&StationID=5415&","Year=","&Month=","&Day="]
[1959,3,1,"http://climate.weatheroffice.gc.ca/climateData/hourlydata_e.html?timeframe=1&Prov=XX&StationID=5415&Year=1959&Month=3&Day=1",null,"http://climate.weatheroffice.gc.ca/climateData/hourlydata_e.html?timeframe=1&Prov=XX&StationID=5415&","Year=","&Month=","&Day="]
[1959,3,2,"http://climate.weatheroffice.gc.ca/climateData/hourlydata_e.html?timeframe=1&Prov=XX&StationID=5415&Year=1959&Month=3&Day=2",null,"http://climate.weatheroffice.gc.ca/climateData/hourlydata_e.html?timeframe=1&Prov=XX&StationID=5415&","Year=","&Month=","&Day="]
[1959,3,3,"http://climate.weatheroffice.gc.ca/climateData/hourlydata_e.html?timeframe=1&Prov=XX&StationID=5415&Year=1959&Month=3&Day=3",null,"http://climate.weatheroffice.gc.ca/climateData/hourlydata_e.html?timeframe=1&Prov=XX&StationID=5415&","Year=","&Month=","&Day="]
[1959,3,4,{"$f":"+F66&G66&A66&H66&B66&I66&C66","v":"http://climate.weatheroffice.gc.ca/climateData/hourlydata_e.html?timeframe=1&Prov=XX&StationID=5415&Year=1959&Month=3&Day=4"},null,"http://climate.weatheroffice.gc.ca/climateData/hourlydata_e.html?timeframe=1&Prov=XX&StationID=5415&","Year=","&Month=","&Day="]
[{"$f":"+A66","v":1959},{"$f":"+B66","v":3},{"$f":"1+C66","v":5},"http://climate.weatheroffice.gc.ca/climateData/hourlydata_e.html?timeframe=1&Prov=XX&StationID=5415&Year=1959&Month=3&Day=5",null,"http://climate.weatheroffice.gc.ca/climateData/hourlydata_e.html?timeframe=1&Prov=XX&StationID=5415&","Year=","&Month=","&Day="]
[1959,3,6,"http://climate.weatheroffice.gc.ca/climateData/hourlydata_e.html?timeframe=1&Prov=XX&StationID=5415&Year=1959&Month=3&Day=6",null,"http://climate.weatheroffice.gc.ca/climateData/hourlydata_e.html?timeframe=1&Prov=XX&StationID=5415&","Year=","&Month=","&Day="]
[1959,3,7,"http://climate.weatheroffice.gc.ca/climateData/hourlydata_e.html?timeframe=1&Prov=XX&StationID=5415&Year=1959&Month=3&Day=7",null,"http://climate.weatheroffice.gc.ca/climateData/hourlydata_e.html?timeframe=1&Prov=XX&StationID=5415&","Year=","&Month=","&Day="]
[1959,3,8,"http://climate.weatheroffice.gc.ca/climateData/hourlydata_e.html?timeframe=1&Prov=XX&StationID=5415&Year=1959&Month=3&Day=8",null,"http://climate.weatheroffice.gc.ca/climateData/hourlydata_e.html?timeframe=1&Prov=XX&StationID=5415&","Year=","&Month=","&Day="]
[1959,3,9,"http://climate.weatheroffice.gc.ca/climateData/hourlydata_e.html?timeframe=1&Prov=XX&StationID=5415&Year=1959&Month=3&Day=9",null,"http://climate.weatheroffice.gc.ca/climateData/hourlydata_e.html?timeframe=1&Prov=XX&StationID=5415&","Year=","&Month=","&Day="]
[1959,3,10,"http://climate.weatheroffice.gc.ca/climateData/hourlydata_e.html?timeframe=1&Prov=XX&StationID=5415&Year=1959&Month=3&Day=10",null,"http://climate.weatheroffice.gc.ca/climateData/hourlydata_e.html?timeframe=1&Prov=XX&StationID=5415&","Year=","&Month=","&Day="]
[1959,3,11,"http://climate.weatheroffice.gc.ca/climateData/hourlydata_e.html?timeframe=1&Prov=XX&StationID=5415&Year=1959&Month=3&Day=11",null,"http://climate.weatheroffice.gc.ca/climateData/hourlydata_e.html?timeframe=1&Prov=XX&StationID=5415&","Year=","&Month=","&Day="]
[1959,3,12,"http://climate.weatheroffice.gc.ca/climateData/hourlydata_e.html?timeframe=1&Prov=XX&StationID=5415&Year=1959&Month=3&Day=12",null,"http://climate.weatheroffice.gc.ca/climateData/hourlydata_e.html?timeframe=1&Prov=XX&StationID=5415&","Year=","&Month=","&Day="]
[1959,3,13,"http://climate.weatheroffice.gc.ca/climateData/hourlydata_e.html?timeframe=1&Prov=XX&StationID=5415&Year=1959&Month=3&Day=13",null,"http://climate.weatheroffice.gc.ca/climateData/hourlydata_e.html?timeframe=1&Prov=XX&StationID=5415&","Year=","&Month=","&Day="]
[1959,3,14,"http://climate.weatheroffice.gc.ca/climateData/hourlydata_e.html?timeframe=1&Prov=XX&StationID=5415&Year=1959&Month=3&Day=14",null,"http://climate.weatheroffice.gc.ca/climateData/hourlydata_e.html?timeframe=1&Prov=XX&StationID=5415&","Year=","&Month=","&Day="]
[1959,3,15,"http://climate.weatheroffice.gc.ca/climateData/hourlydata_e.html?timeframe=1&Prov=XX&StationID=5415&Year=1959&Month=3&Day=15",null,"http://climate.weatheroffice.gc.ca/climateData/hourlydata_e.html?timeframe=1&Prov=XX&StationID=5415&","Year=","&Month=","&Day="]
[1959,3,16,"http://climate.weatheroffice.gc.ca/climateData/hourlydata_e.html?timeframe=1&Prov=XX&StationID=5415&Year=1959&Month=3&Day=16",null,"http://climate.weatheroffice.gc.ca/climateData/hourlydata_e.html?timeframe=1&Prov=XX&StationID=5415&","Year=","&Month=","&Day="]
[1959,3,17,"http://climate.weatheroffice.gc.ca/climateData/hourlydata_e.html?timeframe=1&Prov=XX&StationID=5415&Year=1959&Month=3&Day=17",null,"http://climate.weatheroffice.gc.ca/climateData/hourlydata_e.html?timeframe=1&Prov=XX&StationID=5415&","Year=","&Month=","&Day="]
[1959,3,18,"http://climate.weatheroffice.gc.ca/climateData/hourlydata_e.html?timeframe=1&Prov=XX&StationID=5415&Year=1959&Month=3&Day=18",null,"http://climate.weatheroffice.gc.ca/climateData/hourlydata_e.html?timeframe=1&Prov=XX&StationID=5415&","Year=","&Month=","&Day="]
[1959,3,19,"http://climate.weatheroffice.gc.ca/climateData/hourlydata_e.html?timeframe=1&Prov=XX&StationID=5415&Year=1959&Month=3&Day=19",null,"http://climate.weatheroffice.gc.ca/climateData/hourlydata_e.html?timeframe=1&Prov=XX&StationID=5415&","Year=","&Month=","&Day="]
[1959,3,20,"http://climate.weatheroffice.gc.ca/climateData/hourlydata_e.html?timeframe=1&Prov=XX&StationID=5415&Year=1959&Month=3&Day=20",null,"http://climate.weatheroffice.gc.ca/climateData/hourlydata_e.html?timeframe=1&Prov=XX&StationID=5415&","Year=","&Month=","&Day="]
[1959,3,21,"http://climate.weatheroffice.gc.ca/climateData/hourlydata_e.html?timeframe=1&Prov=XX&StationID=5415&Year=1959&Month=3&Day=21",null,"http://climate.weatheroffice.gc.ca/climateData/hourlydata_e.html?timeframe=1&Prov=XX&StationID=5415&","Year=","&Month=","&Day="]
[1959,3,22,"http://climate.weatheroffice.gc.ca/climateData/hourlydata_e.html?timeframe=1&Prov=XX&StationID=5415&Year=1959&Month=3&Day=22",null,"http://climate.weatheroffice.gc.ca/climateData/hourlydata_e.html?timeframe=1&Prov=XX&StationID=5415&","Year=","&Month=","&Day="]
[1959,3,23,"http://climate.weatheroffice.gc.ca/climateData/hourlydata_e.html?timeframe=1&Prov=XX&StationID=5415&Year=1959&Month=3&Day=23",null,"http://climate.weatheroffice.gc.ca/climateData/hourlydata_e.html?timeframe=1&Prov=XX&StationID=5415&","Year=","&Month=","&Day="]
[1959,3,24,"http://climate.weatheroffice.gc.ca/climateData/hourlydata_e.html?timeframe=1&Prov=XX&StationID=5415&Year=1959&Month=3&Day=24",null,"http://climate.weatheroffice.gc.ca/climateData/hourlydata_e.html?timeframe=1&Prov=XX&StationID=5415&","Year=","&Month=","&Day="]
[1959,3,25,"http://climate.weatheroffice.gc.ca/climateData/hourlydata_e.html?timeframe=1&Prov=XX&StationID=5415&Year=1959&Month=3&Day=25",null,"http://climate.weatheroffice.gc.ca/climateData/hourlydata_e.html?timeframe=1&Prov=XX&StationID=5415&","Year=","&Month=","&Day="]
[1959,3,26,"http://climate.weatheroffice.gc.ca/climateData/hourlydata_e.html?timeframe=1&Prov=XX&StationID=5415&Year=1959&Month=3&Day=26",null,"http://climate.weatheroffice.gc.ca/climateData/hourlydata_e.html?timeframe=1&Prov=XX&StationID=5415&","Year=","&Month=","&Day="]
[1959,3,27,"http://climate.weatheroffice.gc.ca/climateData/hourlydata_e.html?timeframe=1&Prov=XX&StationID=5415&Year=1959&Month=3&Day=27",null,"http://climate.weatheroffice.gc.ca/climateData/hourlydata_e.html?timeframe=1&Prov=XX&StationID=5415&","Year=","&Month=","&Day="]
[1959,3,28,"http://climate.weatheroffice.gc.ca/climateData/hourlydata_e.html?timeframe=1&Prov=XX&StationID=5415&Year=1959&Month=3&Day=28",null,"http://climate.weatheroffice.gc.ca/climateData/hourlydata_e.html?timeframe=1&Prov=XX&StationID=5415&","Year=","&Month=","&Day="]
[1959,3,29,"http://climate.weatheroffice.gc.ca/climateData/hourlydata_e.html?timeframe=1&Prov=XX&StationID=5415&Year=1959&Month=3&Day=29",null,"http://climate.weatheroffice.gc.ca/climateData/hourlydata_e.html?timeframe=1&Prov=XX&StationID=5415&","Year=","&Month=","&Day="]
[1959,3,30,"http://climate.weatheroffice.gc.ca/climateData/hourlydata_e.html?timeframe=1&Prov=XX&StationID=5415&Year=1959&Month=3&Day=30",null,"http://climate.weatheroffice.gc.ca/climateData/hourlydata_e.html?timeframe=1&Prov=XX&StationID=5415&","Year=","&Month=","&Day="]
[1959,3,31,"http://climate.weatheroffice.gc.ca/climateData/hourlydata_e.html?timeframe=1&Prov=XX&StationID=5415&Year=1959&Month=3&Day=31",null,"http://climate.weatheroffice.gc.ca/climateData/hourlydata_e.html?timeframe=1&Prov=XX&StationID=5415&","Year=","&Month=","&Day="]
[1959,4,1,"http://climate.weatheroffice.gc.ca/climateData/hourlydata_e.html?timeframe=1&Prov=XX&StationID=5415&Year=1959&Month=4&Day=1",null,"http://climate.weatheroffice.gc.ca/climateData/hourlydata_e.html?timeframe=1&Prov=XX&StationID=5415&","Year=","&Month=","&Day="]
[1959,4,2,"http://climate.weatheroffice.gc.ca/climateData/hourlydata_e.html?timeframe=1&Prov=XX&StationID=5415&Year=1959&Month=4&Day=2",null,"http://climate.weatheroffice.gc.ca/climateData/hourlydata_e.html?timeframe=1&Prov=XX&StationID=5415&","Year=","&Month=","&Day="]
[1959,4,3,"http://climate.weatheroffice.gc.ca/climateData/hourlydata_e.html?timeframe=1&Prov=XX&StationID=5415&Year=1959&Month=4&Day=3",null,"http://climate.weatheroffice.gc.ca/climateData/hourlydata_e.html?timeframe=1&Prov=XX&StationID=5415&","Year=","&Month=","&Day="]
[1959,4,4,"http://climate.weatheroffice.gc.ca/climateData/hourlydata_e.html?timeframe=1&Prov=XX&StationID=5415&Year=1959&Month=4&Day=4",null,"http://climate.weatheroffice.gc.ca/climateData/hourlydata_e.html?timeframe=1&Prov=XX&StationID=5415&","Year=","&Month=","&Day="]
[1959,4,5,"http://climate.weatheroffice.gc.ca/climateData/hourlydata_e.html?timeframe=1&Prov=XX&StationID=5415&Year=1959&Month=4&Day=5",null,"http://climate.weatheroffice.gc.ca/climateData/hourlydata_e.html?timeframe=1&Prov=XX&StationID=5415&","Year=","&Month=","&Day="]
[1959,4,6,"http://climate.weatheroffice.gc.ca/climateData/hourlydata_e.html?timeframe=1&Prov=XX&StationID=5415&Year=1959&Month=4&Day=6",null,"http://climate.weatheroffice.gc.ca/climateData/hourlydata_e.html?timeframe=1&Prov=XX&StationID=5415&","Year=","&Month=","&Day="]
[1959,4,7,"http://climate.weatheroffice.gc.ca/climateData/hourlydata_e.html?timeframe=1&Prov=XX&StationID=5415&Year=1959&Month=4&Day=7",null,"http://climate.weatheroffice.gc.ca/climateData/hourlydata_e.html?timeframe=1&Prov=XX&StationID=5415&","Year=","&Month=","&Day="]
[1959,4,8,"http://climate.weatheroffice.gc.ca/climateData/hourlydata_e.html?timeframe=1&Prov=XX&StationID=5415&Year=1959&Month=4&Day=8",null,"http://climate.weatheroffice.gc.ca/climateData/hourlydata_e.html?timeframe=1&Prov=XX&StationID=5415&","Year=","&Month=","&Day="]
[1959,4,9,"http://climate.weatheroffice.gc.ca/climateData/hourlydata_e.html?timeframe=1&Prov=XX&StationID=5415&Year=1959&Month=4&Day=9",null,"http://climate.weatheroffice.gc.ca/climateData/hourlydata_e.html?timeframe=1&Prov=XX&StationID=5415&","Year=","&Month=","&Day="]
[1959,4,10,"http://climate.weatheroffice.gc.ca/climateData/hourlydata_e.html?timeframe=1&Prov=XX&StationID=5415&Year=1959&Month=4&Day=10",null,"http://climate.weatheroffice.gc.ca/climateData/hourlydata_e.html?timeframe=1&Prov=XX&StationID=5415&","Year=","&Month=","&Day="]
[1959,4,11,"http://climate.weatheroffice.gc.ca/climateData/hourlydata_e.html?timeframe=1&Prov=XX&StationID=5415&Year=1959&Month=4&Day=11",null,"http://climate.weatheroffice.gc.ca/climateData/hourlydata_e.html?timeframe=1&Prov=XX&StationID=5415&","Year=","&Month=","&Day="]
[1959,4,12,"http://climate.weatheroffice.gc.ca/climateData/hourlydata_e.html?timeframe=1&Prov=XX&StationID=5415&Year=1959&Month=4&Day=12",null,"http://climate.weatheroffice.gc.ca/climateData/hourlydata_e.html?timeframe=1&Prov=XX&StationID=5415&","Year=","&Month=","&Day="]
[1959,4,13,"http://climate.weatheroffice.gc.ca/climateData/hourlydata_e.html?timeframe=1&Prov=XX&StationID=5415&Year=1959&Month=4&Day=13",null,"http://climate.weatheroffice.gc.ca/climateData/hourlydata_e.html?timeframe=1&Prov=XX&StationID=5415&","Year=","&Month=","&Day="]
[1959,4,14,"http://climate.weatheroffice.gc.ca/climateData/hourlydata_e.html?timeframe=1&Prov=XX&StationID=5415&Year=1959&Month=4&Day=14",null,"http://climate.weatheroffice.gc.ca/climateData/hourlydata_e.html?timeframe=1&Prov=XX&StationID=5415&","Year=","&Month=","&Day="]
[1959,4,15,"http://climate.weatheroffice.gc.ca/climateData/hourlydata_e.html?timeframe=1&Prov=XX&StationID=5415&Year=1959&Month=4&Day=15",null,"http://climate.weatheroffice.gc.ca/climateData/hourlydata_e.html?timeframe=1&Prov=XX&StationID=5415&","Year=","&Month=","&Day="]
[1959,4,16,"http://climate.weatheroffice.gc.ca/climateData/hourlydata_e.html?timeframe=1&Prov=XX&StationID=5415&Year=1959&Month=4&Day=16",null,"http://climate.weatheroffice.gc.ca/climateData/hourlydata_e.html?timeframe=1&Prov=XX&StationID=5415&","Year=","&Month=","&Day="]
[1959,4,17,"http://climate.weatheroffice.gc.ca/climateData/hourlydata_e.html?timeframe=1&Prov=XX&StationID=5415&Year=1959&Month=4&Day=17",null,"http://climate.weatheroffice.gc.ca/climateData/hourlydata_e.html?timeframe=1&Prov=XX&StationID=5415&","Year=","&Month=","&Day="]
[1959,4,18,"http://climate.weatheroffice.gc.ca/climateData/hourlydata_e.html?timeframe=1&Prov=XX&StationID=5415&Year=1959&Month=4&Day=18",null,"http://climate.weatheroffice.gc.ca/climateData/hourlydata_e.html?timeframe=1&Prov=XX&StationID=5415&","Year=","&Month=","&Day="]
[1959,4,19,"http://climate.weatheroffice.gc.ca/climateData/hourlydata_e.html?timeframe=1&Prov=XX&StationID=5415&Year=1959&Month=4&Day=19",null,"http://climate.weatheroffice.gc.ca/climateData/hourlydata_e.html?timeframe=1&Prov=XX&StationID=5415&","Year=","&Month=","&Day="]
[1959,4,20,"http://climate.weatheroffice.gc.ca/climateData/hourlydata_e.html?timeframe=1&Prov=XX&StationID=5415&Year=1959&Month=4&Day=20",null,"http://climate.weatheroffice.gc.ca/climateData/hourlydata_e.html?timeframe=1&Prov=XX&StationID=5415&","Year=","&Month=","&Day="]
[1959,4,21,"http://climate.weatheroffice.gc.ca/climateData/hourlydata_e.html?timeframe=1&Prov=XX&StationID=5415&Year=1959&Month=4&Day=21",null,"http://climate.weatheroffice.gc.ca/climateData/hourlydata_e.html?timeframe=1&Prov=XX&StationID=5415&","Year=","&Month=","&Day="]
[1959,4,22,"http://climate.weatheroffice.gc.ca/climateData/hourlydata_e.html?timeframe=1&Prov=XX&StationID=5415&Year=1959&Month=4&Day=22",null,"http://climate.weatheroffice.gc.ca/climateData/hourlydata_e.html?timeframe=1&Prov=XX&StationID=5415&","Year=","&Month=","&Day="]
[1959,4,23,"http://climate.weatheroffice.gc.ca/climateData/hourlydata_e.html?timeframe=1&Prov=XX&StationID=5415&Year=1959&Month=4&Day=23",null,"http://climate.weatheroffice.gc.ca/climateData/hourlydata_e.html?timeframe=1&Prov=XX&StationID=5415&","Year=","&Month=","&Day="]
[1959,4,24,"http://climate.weatheroffice.gc.ca/climateData/hourlydata_e.html?timeframe=1&Prov=XX&StationID=5415&Year=1959&Month=4&Day=24",null,"http://climate.weatheroffice.gc.ca/climateData/hourlydata_e.html?timeframe=1&Prov=XX&StationID=5415&","Year=","&Month=","&Day="]
[1959,4,25,"http://climate.weatheroffice.gc.ca/climateData/hourlydata_e.html?timeframe=1&Prov=XX&StationID=5415&Year=1959&Month=4&Day=25",null,"http://climate.weatheroffice.gc.ca/climateData/hourlydata_e.html?timeframe=1&Prov=XX&StationID=5415&","Year=","&Month=","&Day="]
[1959,4,26,"http://climate.weatheroffice.gc.ca/climateData/hourlydata_e.html?timeframe=1&Prov=XX&StationID=5415&Year=1959&Month=4&Day=26",null,"http://climate.weatheroffice.gc.ca/climateData/hourlydata_e.html?timeframe=1&Prov=XX&StationID=5415&","Year=","&Month=","&Day="]
[1959,4,27,"http://climate.weatheroffice.gc.ca/climateData/hourlydata_e.html?timeframe=1&Prov=XX&StationID=5415&Year=1959&Month=4&Day=27",null,"http://climate.weatheroffice.gc.ca/climateData/hourlydata_e.html?timeframe=1&Prov=XX&StationID=5415&","Year=","&Month=","&Day="]
[1959,4,28,"http://climate.weatheroffice.gc.ca/climateData/hourlydata_e.html?timeframe=1&Prov=XX&StationID=5415&Year=1959&Month=4&Day=28",null,"http://climate.weatheroffice.gc.ca/climateData/hourlydata_e.html?timeframe=1&Prov=XX&StationID=5415&","Year=","&Month=","&Day="]
[1959,4,29,"http://climate.weatheroffice.gc.ca/climateData/hourlydata_e.html?timeframe=1&Prov=XX&StationID=5415&Year=1959&Month=4&Day=29",null,"http://climate.weatheroffice.gc.ca/climateData/hourlydata_e.html?timeframe=1&Prov=XX&StationID=5415&","Year=","&Month=","&Day="]
[1959,4,30,"http://climate.weatheroffice.gc.ca/climateData/hourlydata_e.html?timeframe=1&Prov=XX&StationID=5415&Year=1959&Month=4&Day=30",null,"http://climate.weatheroffice.gc.ca/climateData/hourlydata_e.html?timeframe=1&Prov=XX&StationID=5415&","Year=","&Month=","&Day="]
[1959,4,31,"http://climate.weatheroffice.gc.ca/climateData/hourlydata_e.html?timeframe=1&Prov=XX&StationID=5415&Year=1959&Month=4&Day=31",null,"http://climate.weatheroffice.gc.ca/climateData/hourlydata_e.html?timeframe=1&Prov=XX&StationID=5415&","Year=","&Month=","&Day="]
[1959,5,1,"http://climate.weatheroffice.gc.ca/climateData/hourlydata_e.html?timeframe=1&Prov=XX&StationID=5415&Year=1959&Month=5&Day=1",null,"http://climate.weatheroffice.gc.ca/climateData/hourlydata_e.html?timeframe=1&Prov=XX&StationID=5415&","Year=","&Month=","&Day="]
[1959,5,2,"http://climate.weatheroffice.gc.ca/climateData/hourlydata_e.html?timeframe=1&Prov=XX&StationID=5415&Year=1959&Month=5&Day=2",null,"http://climate.weatheroffice.gc.ca/climateData/hourlydata_e.html?timeframe=1&Prov=XX&StationID=5415&","Year=","&Month=","&Day="]
[1959,5,3,"http://climate.weatheroffice.gc.ca/climateData/hourlydata_e.html?timeframe=1&Prov=XX&StationID=5415&Year=1959&Month=5&Day=3",null,"http://climate.weatheroffice.gc.ca/climateData/hourlydata_e.html?timeframe=1&Prov=XX&StationID=5415&","Year=","&Month=","&Day="]
[1959,5,4,"http://climate.weatheroffice.gc.ca/climateData/hourlydata_e.html?timeframe=1&Prov=XX&StationID=5415&Year=1959&Month=5&Day=4",null,"http://climate.weatheroffice.gc.ca/climateData/hourlydata_e.html?timeframe=1&Prov=XX&StationID=5415&","Year=","&Month=","&Day="]
[1959,5,5,"http://climate.weatheroffice.gc.ca/climateData/hourlydata_e.html?timeframe=1&Prov=XX&StationID=5415&Year=1959&Month=5&Day=5",null,"http://climate.weatheroffice.gc.ca/climateData/hourlydata_e.html?timeframe=1&Prov=XX&StationID=5415&","Year=","&Month=","&Day="]
[1959,5,6,{"$f":"+F130&G130&A130&H130&B130&I130&C130","v":"http://climate.weatheroffice.gc.ca/climateData/hourlydata_e.html?timeframe=1&Prov=XX&StationID=5415&Year=1959&Month=5&Day=6"},null,"http://climate.weatheroffice.gc.ca/climateData/hourlydata_e.html?timeframe=1&Prov=XX&StationID=5415&","Year=","&Month=","&Day="]
[{"$f":"+A130","v":1959},{"$f":"+B130","v":5},{"$f":"1+C130","v":7},"http://climate.weatheroffice.gc.ca/climateData/hourlydata_e.html?timeframe=1&Prov=XX&StationID=5415&Year=1959&Month=5&Day=7",null,"http://climate.weatheroffice.gc.ca/climateData/hourlydata_e.html?timeframe=1&Prov=XX&StationID=5415&","Year=","&Month=","&Day="]
[1959,5,8,"http://climate.weatheroffice.gc.ca/climateData/hourlydata_e.html?timeframe=1&Prov=XX&StationID=5415&Year=1959&Month=5&Day=8",null,"http://climate.weatheroffice.gc.ca/climateData/hourlydata_e.html?timeframe=1&Prov=XX&StationID=5415&","Year=","&Month=","&Day="]
[1959,5,9,"http://climate.weatheroffice.gc.ca/climateData/hourlydata_e.html?timeframe=1&Prov=XX&StationID=5415&Year=1959&Month=5&Day=9",null,"http://climate.weatheroffice.gc.ca/climateData/hourlydata_e.html?timeframe=1&Prov=XX&StationID=5415&","Year=","&Month=","&Day="]
[1959,5,10,"http://climate.weatheroffice.gc.ca/climateData/hourlydata_e.html?timeframe=1&Prov=XX&StationID=5415&Year=1959&Month=5&Day=10",null,"http://climate.weatheroffice.gc.ca/climateData/hourlydata_e.html?timeframe=1&Prov=XX&StationID=5415&","Year=","&Month=","&Day="]
[1959,5,11,"http://climate.weatheroffice.gc.ca/climateData/hourlydata_e.html?timeframe=1&Prov=XX&StationID=5415&Year=1959&Month=5&Day=11",null,"http://climate.weatheroffice.gc.ca/climateData/hourlydata_e.html?timeframe=1&Prov=XX&StationID=5415&","Year=","&Month=","&Day="]
[1959,5,12,"http://climate.weatheroffice.gc.ca/climateData/hourlydata_e.html?timeframe=1&Prov=XX&StationID=5415&Year=1959&Month=5&Day=12",null,"http://climate.weatheroffice.gc.ca/climateData/hourlydata_e.html?timeframe=1&Prov=XX&StationID=5415&","Year=","&Month=","&Day="]
[1959,5,13,"http://climate.weatheroffice.gc.ca/climateData/hourlydata_e.html?timeframe=1&Prov=XX&StationID=5415&Year=1959&Month=5&Day=13",null,"http://climate.weatheroffice.gc.ca/climateData/hourlydata_e.html?timeframe=1&Prov=XX&StationID=5415&","Year=","&Month=","&Day="]
[1959,5,14,"http://climate.weatheroffice.gc.ca/climateData/hourlydata_e.html?timeframe=1&Prov=XX&StationID=5415&Year=1959&Month=5&Day=14",null,"http://climate.weatheroffice.gc.ca/climateData/hourlydata_e.html?timeframe=1&Prov=XX&StationID=5415&","Year=","&Month=","&Day="]
[1959,5,15,"http://climate.weatheroffice.gc.ca/climateData/hourlydata_e.html?timeframe=1&Prov=XX&StationID=5415&Year=1959&Month=5&Day=15",null,"http://climate.weatheroffice.gc.ca/climateData/hourlydata_e.html?timeframe=1&Prov=XX&StationID=5415&","Year=","&Month=","&Day="]
[1959,5,16,"http://climate.weatheroffice.gc.ca/climateData/hourlydata_e.html?timeframe=1&Prov=XX&StationID=5415&Year=1959&Month=5&Day=16",null,"http://climate.weatheroffice.gc.ca/climateData/hourlydata_e.html?timeframe=1&Prov=XX&StationID=5415&","Year=","&Month=","&Day="]
[1959,5,17,"http://climate.weatheroffice.gc.ca/climateData/hourlydata_e.html?timeframe=1&Prov=XX&StationID=5415&Year=1959&Month=5&Day=17",null,"http://climate.weatheroffice.gc.ca/climateData/hourlydata_e.html?timeframe=1&Prov=XX&StationID=5415&","Year=","&Month=","&Day="]
[1959,5,18,"http://climate.weatheroffice.gc.ca/climateData/hourlydata_e.html?timeframe=1&Prov=XX&StationID=5415&Year=1959&Month=5&Day=18",null,"http://climate.weatheroffice.gc.ca/climateData/hourlydata_e.html?timeframe=1&Prov=XX&StationID=5415&","Year=","&Month=","&Day="]
[1959,5,19,"http://climate.weatheroffice.gc.ca/climateData/hourlydata_e.html?timeframe=1&Prov=XX&StationID=5415&Year=1959&Month=5&Day=19",null,"http://climate.weatheroffice.gc.ca/climateData/hourlydata_e.html?timeframe=1&Prov=XX&StationID=5415&","Year=","&Month=","&Day="]
[1959,5,20,"http://climate.weatheroffice.gc.ca/climateData/hourlydata_e.html?timeframe=1&Prov=XX&StationID=5415&Year=1959&Month=5&Day=20",null,"http://climate.weatheroffice.gc.ca/climateData/hourlydata_e.html?timeframe=1&Prov=XX&StationID=5415&","Year=","&Month=","&Day="]
[1959,5,21,"http://climate.weatheroffice.gc.ca/climateData/hourlydata_e.html?timeframe=1&Prov=XX&StationID=5415&Year=1959&Month=5&Day=21",null,"http://climate.weatheroffice.gc.ca/climateData/hourlydata_e.html?timeframe=1&Prov=XX&StationID=5415&","Year=","&Month=","&Day="]
[1959,5,22,"http://climate.weatheroffice.gc.ca/climateData/hourlydata_e.html?timeframe=1&Prov=XX&StationID=5415&Year=1959&Month=5&Day=22",null,"http://climate.weatheroffice.gc.ca/climateData/hourlydata_e.html?timeframe=1&Prov=XX&StationID=5415&","Year=","&Month=","&Day="]
[1959,5,23,"http://climate.weatheroffice.gc.ca/climateData/hourlydata_e.html?timeframe=1&Prov=XX&StationID=5415&Year=1959&Month=5&Day=23",null,"http://climate.weatheroffice.gc.ca/climateData/hourlydata_e.html?timeframe=1&Prov=XX&StationID=5415&","Year=","&Month=","&Day="]
[1959,5,24,"http://climate.weatheroffice.gc.ca/climateData/hourlydata_e.html?timeframe=1&Prov=XX&StationID=5415&Year=1959&Month=5&Day=24",null,"http://climate.weatheroffice.gc.ca/climateData/hourlydata_e.html?timeframe=1&Prov=XX&StationID=5415&","Year=","&Month=","&Day="]
[1959,5,25,"http://climate.weatheroffice.gc.ca/climateData/hourlydata_e.html?timeframe=1&Prov=XX&StationID=5415&Year=1959&Month=5&Day=25",null,"http://climate.weatheroffice.gc.ca/climateData/hourlydata_e.html?timeframe=1&Prov=XX&StationID=5415&","Year=","&Month=","&Day="]
[1959,5,26,"http://climate.weatheroffice.gc.ca/climateData/hourlydata_e.html?timeframe=1&Prov=XX&StationID=5415&Year=1959&Month=5&Day=26",null,"http://climate.weatheroffice.gc.ca/climateData/hourlydata_e.html?timeframe=1&Prov=XX&StationID=5415&","Year=","&Month=","&Day="]
[1959,5,27,"http://climate.weatheroffice.gc.ca/climateData/hourlydata_e.html?timeframe=1&Prov=XX&StationID=5415&Year=1959&Month=5&Day=27",null,"http://climate.weatheroffice.gc.ca/climateData/hourlydata_e.html?timeframe=1&Prov=XX&StationID=5415&","Year=","&Month=","&Day="]
[1959,5,28,"http://climate.weatheroffice.gc.ca/climateData/hourlydata_e.html?timeframe=1&Prov=XX&StationID=5415&Year=1959&Month=5&Day=28",null,"http://climate.weatheroffice.gc.ca/climateData/hourlydata_e.html?timeframe=1&Prov=XX&StationID=5415&","Year=","&Month=","&Day="]
[1959,5,29,"http://climate.weatheroffice.gc.ca/climateData/hourlydata_e.html?timeframe=1&Prov=XX&StationID=5415&Year=1959&Month=5&Day=29",null,"http://climate.weatheroffice.gc.ca/climateData/hourlydata_e.html?timeframe=1&Prov=XX&StationID=5415&","Year=","&Month=","&Day="]
[1959,5,30,"http://climate.weatheroffice.gc.ca/climateData/hourlydata_e.html?timeframe=1&Prov=XX&StationID=5415&Year=1959&Month=5&Day=30",null,"http://climate.weatheroffice.gc.ca/climateData/hourlydata_e.html?timeframe=1&Prov=XX&StationID=5415&","Year=","&Month=","&Day="]
[1959,5,31,"http://climate.weatheroffice.gc.ca/climateData/hourlydata_e.html?timeframe=1&Prov=XX&StationID=5415&Year=1959&Month=5&Day=31",null,"http://climate.weatheroffice.gc.ca/climateData/hourlydata_e.html?timeframe=1&Prov=XX&StationID=5415&","Year=","&Month=","&Day="]
[1959,6,1,"http://climate.weatheroffice.gc.ca/climateData/hourlydata_e.html?timeframe=1&Prov=XX&StationID=5415&Year=1959&Month=6&Day=1",null,"http://climate.weatheroffice.gc.ca/climateData/hourlydata_e.html?timeframe=1&Prov=XX&StationID=5415&","Year=","&Month=","&Day="]
[1959,6,2,"http://climate.weatheroffice.gc.ca/climateData/hourlydata_e.html?timeframe=1&Prov=XX&StationID=5415&Year=1959&Month=6&Day=2",null,"http://climate.weatheroffice.gc.ca/climateData/hourlydata_e.html?timeframe=1&Prov=XX&StationID=5415&","Year=","&Month=","&Day="]
[1959,6,3,"http://climate.weatheroffice.gc.ca/climateData/hourlydata_e.html?timeframe=1&Prov=XX&StationID=5415&Year=1959&Month=6&Day=3",null,"http://climate.weatheroffice.gc.ca/climateData/hourlydata_e.html?timeframe=1&Prov=XX&StationID=5415&","Year=","&Month=","&Day="]
[1959,6,4,"http://climate.weatheroffice.gc.ca/climateData/hourlydata_e.html?timeframe=1&Prov=XX&StationID=5415&Year=1959&Month=6&Day=4",null,"http://climate.weatheroffice.gc.ca/climateData/hourlydata_e.html?timeframe=1&Prov=XX&StationID=5415&","Year=","&Month=","&Day="]
[1959,6,5,"http://climate.weatheroffice.gc.ca/climateData/hourlydata_e.html?timeframe=1&Prov=XX&StationID=5415&Year=1959&Month=6&Day=5",null,"http://climate.weatheroffice.gc.ca/climateData/hourlydata_e.html?timeframe=1&Prov=XX&StationID=5415&","Year=","&Month=","&Day="]
[1959,6,6,"http://climate.weatheroffice.gc.ca/climateData/hourlydata_e.html?timeframe=1&Prov=XX&StationID=5415&Year=1959&Month=6&Day=6",null,"http://climate.weatheroffice.gc.ca/climateData/hourlydata_e.html?timeframe=1&Prov=XX&StationID=5415&","Year=","&Month=","&Day="]
[1959,6,7,"http://climate.weatheroffice.gc.ca/climateData/hourlydata_e.html?timeframe=1&Prov=XX&StationID=5415&Year=1959&Month=6&Day=7",null,"http://climate.weatheroffice.gc.ca/climateData/hourlydata_e.html?timeframe=1&Prov=XX&StationID=5415&","Year=","&Month=","&Day="]
[1959,6,8,"http://climate.weatheroffice.gc.ca/climateData/hourlydata_e.html?timeframe=1&Prov=XX&StationID=5415&Year=1959&Month=6&Day=8",null,"http://climate.weatheroffice.gc.ca/climateData/hourlydata_e.html?timeframe=1&Prov=XX&StationID=5415&","Year=","&Month=","&Day="]
[1959,6,9,"http://climate.weatheroffice.gc.ca/climateData/hourlydata_e.html?timeframe=1&Prov=XX&StationID=5415&Year=1959&Month=6&Day=9",null,"http://climate.weatheroffice.gc.ca/climateData/hourlydata_e.html?timeframe=1&Prov=XX&StationID=5415&","Year=","&Month=","&Day="]
[1959,6,10,"http://climate.weatheroffice.gc.ca/climateData/hourlydata_e.html?timeframe=1&Prov=XX&StationID=5415&Year=1959&Month=6&Day=10",null,"http://climate.weatheroffice.gc.ca/climateData/hourlydata_e.html?timeframe=1&Prov=XX&StationID=5415&","Year=","&Month=","&Day="]
[1959,6,11,"http://climate.weatheroffice.gc.ca/climateData/hourlydata_e.html?timeframe=1&Prov=XX&StationID=5415&Year=1959&Month=6&Day=11",null,"http://climate.weatheroffice.gc.ca/climateData/hourlydata_e.html?timeframe=1&Prov=XX&StationID=5415&","Year=","&Month=","&Day="]
[1959,6,12,"http://climate.weatheroffice.gc.ca/climateData/hourlydata_e.html?timeframe=1&Prov=XX&StationID=5415&Year=1959&Month=6&Day=12",null,"http://climate.weatheroffice.gc.ca/climateData/hourlydata_e.html?timeframe=1&Prov=XX&StationID=5415&","Year=","&Month=","&Day="]
[1959,6,13,"http://climate.weatheroffice.gc.ca/climateData/hourlydata_e.html?timeframe=1&Prov=XX&StationID=5415&Year=1959&Month=6&Day=13",null,"http://climate.weatheroffice.gc.ca/climateData/hourlydata_e.html?timeframe=1&Prov=XX&StationID=5415&","Year=","&Month=","&Day="]
[1959,6,14,"http://climate.weatheroffice.gc.ca/climateData/hourlydata_e.html?timeframe=1&Prov=XX&StationID=5415&Year=1959&Month=6&Day=14",null,"http://climate.weatheroffice.gc.ca/climateData/hourlydata_e.html?timeframe=1&Prov=XX&StationID=5415&","Year=","&Month=","&Day="]
[1959,6,15,"http://climate.weatheroffice.gc.ca/climateData/hourlydata_e.html?timeframe=1&Prov=XX&StationID=5415&Year=1959&Month=6&Day=15",null,"http://climate.weatheroffice.gc.ca/climateData/hourlydata_e.html?timeframe=1&Prov=XX&StationID=5415&","Year=","&Month=","&Day="]
[1959,6,16,"http://climate.weatheroffice.gc.ca/climateData/hourlydata_e.html?timeframe=1&Prov=XX&StationID=5415&Year=1959&Month=6&Day=16",null,"http://climate.weatheroffice.gc.ca/climateData/hourlydata_e.html?timeframe=1&Prov=XX&StationID=5415&","Year=","&Month=","&Day="]
[1959,6,17,"http://climate.weatheroffice.gc.ca/climateData/hourlydata_e.html?timeframe=1&Prov=XX&StationID=5415&Year=1959&Month=6&Day=17",null,"http://climate.weatheroffice.gc.ca/climateData/hourlydata_e.html?timeframe=1&Prov=XX&StationID=5415&","Year=","&Month=","&Day="]
[1959,6,18,"http://climate.weatheroffice.gc.ca/climateData/hourlydata_e.html?timeframe=1&Prov=XX&StationID=5415&Year=1959&Month=6&Day=18",null,"http://climate.weatheroffice.gc.ca/climateData/hourlydata_e.html?timeframe=1&Prov=XX&StationID=5415&","Year=","&Month=","&Day="]
[1959,6,19,"http://climate.weatheroffice.gc.ca/climateData/hourlydata_e.html?timeframe=1&Prov=XX&StationID=5415&Year=1959&Month=6&Day=19",null,"http://climate.weatheroffice.gc.ca/climateData/hourlydata_e.html?timeframe=1&Prov=XX&StationID=5415&","Year=","&Month=","&Day="]
[1959,6,20,"http://climate.weatheroffice.gc.ca/climateData/hourlydata_e.html?timeframe=1&Prov=XX&StationID=5415&Year=1959&Month=6&Day=20",null,"http://climate.weatheroffice.gc.ca/climateData/hourlydata_e.html?timeframe=1&Prov=XX&StationID=5415&","Year=","&Month=","&Day="]
[1959,6,21,"http://climate.weatheroffice.gc.ca/climateData/hourlydata_e.html?timeframe=1&Prov=XX&StationID=5415&Year=1959&Month=6&Day=21",null,"http://climate.weatheroffice.gc.ca/climateData/hourlydata_e.html?timeframe=1&Prov=XX&StationID=5415&","Year=","&Month=","&Day="]
[1959,6,22,"http://climate.weatheroffice.gc.ca/climateData/hourlydata_e.html?timeframe=1&Prov=XX&StationID=5415&Year=1959&Month=6&Day=22",null,"http://climate.weatheroffice.gc.ca/climateData/hourlydata_e.html?timeframe=1&Prov=XX&StationID=5415&","Year=","&Month=","&Day="]
[1959,6,23,"http://climate.weatheroffice.gc.ca/climateData/hourlydata_e.html?timeframe=1&Prov=XX&StationID=5415&Year=1959&Month=6&Day=23",null,"http://climate.weatheroffice.gc.ca/climateData/hourlydata_e.html?timeframe=1&Prov=XX&StationID=5415&","Year=","&Month=","&Day="]
[1959,6,24,"http://climate.weatheroffice.gc.ca/climateData/hourlydata_e.html?timeframe=1&Prov=XX&StationID=5415&Year=1959&Month=6&Day=24",null,"http://climate.weatheroffice.gc.ca/climateData/hourlydata_e.html?timeframe=1&Prov=XX&StationID=5415&","Year=","&Month=","&Day="]
[1959,6,25,"http://climate.weatheroffice.gc.ca/climateData/hourlydata_e.html?timeframe=1&Prov=XX&StationID=5415&Year=1959&Month=6&Day=25",null,"http://climate.weatheroffice.gc.ca/climateData/hourlydata_e.html?timeframe=1&Prov=XX&StationID=5415&","Year=","&Month=","&Day="]
[1959,6,26,"http://climate.weatheroffice.gc.ca/climateData/hourlydata_e.html?timeframe=1&Prov=XX&StationID=5415&Year=1959&Month=6&Day=26",null,"http://climate.weatheroffice.gc.ca/climateData/hourlydata_e.html?timeframe=1&Prov=XX&StationID=5415&","Year=","&Month=","&Day="]
[1959,6,27,"http://climate.weatheroffice.gc.ca/climateData/hourlydata_e.html?timeframe=1&Prov=XX&StationID=5415&Year=1959&Month=6&Day=27",null,"http://climate.weatheroffice.gc.ca/climateData/hourlydata_e.html?timeframe=1&Prov=XX&StationID=5415&","Year=","&Month=","&Day="]
[1959,6,28,"http://climate.weatheroffice.gc.ca/climateData/hourlydata_e.html?timeframe=1&Prov=XX&StationID=5415&Year=1959&Month=6&Day=28",null,"http://climate.weatheroffice.gc.ca/climateData/hourlydata_e.html?timeframe=1&Prov=XX&StationID=5415&","Year=","&Month=","&Day="]
[1959,6,29,"http://climate.weatheroffice.gc.ca/climateData/hourlydata_e.html?timeframe=1&Prov=XX&StationID=5415&Year=1959&Month=6&Day=29",null,"http://climate.weatheroffice.gc.ca/climateData/hourlydata_e.html?timeframe=1&Prov=XX&StationID=5415&","Year=","&Month=","&Day="]
[1959,6,30,"http://climate.weatheroffice.gc.ca/climateData/hourlydata_e.html?timeframe=1&Prov=XX&StationID=5415&Year=1959&Month=6&Day=30",null,"http://climate.weatheroffice.gc.ca/climateData/hourlydata_e.html?timeframe=1&Prov=XX&StationID=5415&","Year=","&Month=","&Day="]
[1959,6,31,"http://climate.weatheroffice.gc.ca/climateData/hourlydata_e.html?timeframe=1&Prov=XX&StationID=5415&Year=1959&Month=6&Day=31",null,"http://climate.weatheroffice.gc.ca/climateData/hourlydata_e.html?timeframe=1&Prov=XX&StationID=5415&","Year=","&Month=","&Day="]
[{"$f":"+A186","v":1959},7,1,"http://climate.weatheroffice.gc.ca/climateData/hourlydata_e.html?timeframe=1&Prov=XX&StationID=5415&Year=1959&Month=7&Day=1",null,"http://climate.weatheroffice.gc.ca/climateData/hourlydata_e.html?timeframe=1&Prov=XX&StationID=5415&","Year=","&Month=","&Day="]
[{"$f":"+A187","v":1959},{"$f":"+B187","v":7},{"$f":"1+C187","v":2},"http://climate.weatheroffice.gc.ca/climateData/hourlydata_e.html?timeframe=1&Prov=XX&StationID=5415&Year=1959&Month=7&Day=2",null,"http://climate.weatheroffice.gc.ca/climateData/hourlydata_e.html?timeframe=1&Prov=XX&StationID=5415&","Year=","&Month=","&Day="]
[1959,7,3,"http://climate.weatheroffice.gc.ca/climateData/hourlydata_e.html?timeframe=1&Prov=XX&StationID=5415&Year=1959&Month=7&Day=3",null,"http://climate.weatheroffice.gc.ca/climateData/hourlydata_e.html?timeframe=1&Prov=XX&StationID=5415&","Year=","&Month=","&Day="]
[1959,7,4,"http://climate.weatheroffice.gc.ca/climateData/hourlydata_e.html?timeframe=1&Prov=XX&StationID=5415&Year=1959&Month=7&Day=4",null,"http://climate.weatheroffice.gc.ca/climateData/hourlydata_e.html?timeframe=1&Prov=XX&StationID=5415&","Year=","&Month=","&Day="]
[1959,7,5,"http://climate.weatheroffice.gc.ca/climateData/hourlydata_e.html?timeframe=1&Prov=XX&StationID=5415&Year=1959&Month=7&Day=5",null,"http://climate.weatheroffice.gc.ca/climateData/hourlydata_e.html?timeframe=1&Prov=XX&StationID=5415&","Year=","&Month=","&Day="]
[1959,7,6,"http://climate.weatheroffice.gc.ca/climateData/hourlydata_e.html?timeframe=1&Prov=XX&StationID=5415&Year=1959&Month=7&Day=6",null,"http://climate.weatheroffice.gc.ca/climateData/hourlydata_e.html?timeframe=1&Prov=XX&StationID=5415&","Year=","&Month=","&Day="]
[1959,7,7,"http://climate.weatheroffice.gc.ca/climateData/hourlydata_e.html?timeframe=1&Prov=XX&StationID=5415&Year=1959&Month=7&Day=7",null,"http://climate.weatheroffice.gc.ca/climateData/hourlydata_e.html?timeframe=1&Prov=XX&StationID=5415&","Year=","&Month=","&Day="]
[1959,7,8,{"$f":"+F194&G194&A194&H194&B194&I194&C194","v":"http://climate.weatheroffice.gc.ca/climateData/hourlydata_e.html?timeframe=1&Prov=XX&StationID=5415&Year=1959&Month=7&Day=8"},null,"http://climate.weatheroffice.gc.ca/climateData/hourlydata_e.html?timeframe=1&Prov=XX&StationID=5415&","Year=","&Month=","&Day="]
[{"$f":"+A194","v":1959},{"$f":"+B194","v":7},{"$f":"1+C194","v":9},"http://climate.weatheroffice.gc.ca/climateData/hourlydata_e.html?timeframe=1&Prov=XX&StationID=5415&Year=1959&Month=7&Day=9",null,"http://climate.weatheroffice.gc.ca/climateData/hourlydata_e.html?timeframe=1&Prov=XX&StationID=5415&","Year=","&Month=","&Day="]
[1959,7,10,"http://climate.weatheroffice.gc.ca/climateData/hourlydata_e.html?timeframe=1&Prov=XX&StationID=5415&Year=1959&Month=7&Day=10",null,"http://climate.weatheroffice.gc.ca/climateData/hourlydata_e.html?timeframe=1&Prov=XX&StationID=5415&","Year=","&Month=","&Day="]
[1959,7,11,"http://climate.weatheroffice.gc.ca/climateData/hourlydata_e.html?timeframe=1&Prov=XX&StationID=5415&Year=1959&Month=7&Day=11",null,"http://climate.weatheroffice.gc.ca/climateData/hourlydata_e.html?timeframe=1&Prov=XX&StationID=5415&","Year=","&Month=","&Day="]
[1959,7,12,"http://climate.weatheroffice.gc.ca/climateData/hourlydata_e.html?timeframe=1&Prov=XX&StationID=5415&Year=1959&Month=7&Day=12",null,"http://climate.weatheroffice.gc.ca/climateData/hourlydata_e.html?timeframe=1&Prov=XX&StationID=5415&","Year=","&Month=","&Day="]
[1959,7,13,"http://climate.weatheroffice.gc.ca/climateData/hourlydata_e.html?timeframe=1&Prov=XX&StationID=5415&Year=1959&Month=7&Day=13",null,"http://climate.weatheroffice.gc.ca/climateData/hourlydata_e.html?timeframe=1&Prov=XX&StationID=5415&","Year=","&Month=","&Day="]
[1959,7,14,"http://climate.weatheroffice.gc.ca/climateData/hourlydata_e.html?timeframe=1&Prov=XX&StationID=5415&Year=1959&Month=7&Day=14",null,"http://climate.weatheroffice.gc.ca/climateData/hourlydata_e.html?timeframe=1&Prov=XX&StationID=5415&","Year=","&Month=","&Day="]
[1959,7,15,"http://climate.weatheroffice.gc.ca/climateData/hourlydata_e.html?timeframe=1&Prov=XX&StationID=5415&Year=1959&Month=7&Day=15",null,"http://climate.weatheroffice.gc.ca/climateData/hourlydata_e.html?timeframe=1&Prov=XX&StationID=5415&","Year=","&Month=","&Day="]
[1959,7,16,"http://climate.weatheroffice.gc.ca/climateData/hourlydata_e.html?timeframe=1&Prov=XX&StationID=5415&Year=1959&Month=7&Day=16",null,"http://climate.weatheroffice.gc.ca/climateData/hourlydata_e.html?timeframe=1&Prov=XX&StationID=5415&","Year=","&Month=","&Day="]
[1959,7,17,"http://climate.weatheroffice.gc.ca/climateData/hourlydata_e.html?timeframe=1&Prov=XX&StationID=5415&Year=1959&Month=7&Day=17",null,"http://climate.weatheroffice.gc.ca/climateData/hourlydata_e.html?timeframe=1&Prov=XX&StationID=5415&","Year=","&Month=","&Day="]
[1959,7,18,"http://climate.weatheroffice.gc.ca/climateData/hourlydata_e.html?timeframe=1&Prov=XX&StationID=5415&Year=1959&Month=7&Day=18",null,"http://climate.weatheroffice.gc.ca/climateData/hourlydata_e.html?timeframe=1&Prov=XX&StationID=5415&","Year=","&Month=","&Day="]
[1959,7,19,"http://climate.weatheroffice.gc.ca/climateData/hourlydata_e.html?timeframe=1&Prov=XX&StationID=5415&Year=1959&Month=7&Day=19",null,"http://climate.weatheroffice.gc.ca/climateData/hourlydata_e.html?timeframe=1&Prov=XX&StationID=5415&","Year=","&Month=","&Day="]
[1959,7,20,"http://climate.weatheroffice.gc.ca/climateData/hourlydata_e.html?timeframe=1&Prov=XX&StationID=5415&Year=1959&Month=7&Day=20",null,"http://climate.weatheroffice.gc.ca/climateData/hourlydata_e.html?timeframe=1&Prov=XX&StationID=5415&","Year=","&Month=","&Day="]
[1959,7,21,"http://climate.weatheroffice.gc.ca/climateData/hourlydata_e.html?timeframe=1&Prov=XX&StationID=5415&Year=1959&Month=7&Day=21",null,"http://climate.weatheroffice.gc.ca/climateData/hourlydata_e.html?timeframe=1&Prov=XX&StationID=5415&","Year=","&Month=","&Day="]
[1959,7,22,"http://climate.weatheroffice.gc.ca/climateData/hourlydata_e.html?timeframe=1&Prov=XX&StationID=5415&Year=1959&Month=7&Day=22",null,"http://climate.weatheroffice.gc.ca/climateData/hourlydata_e.html?timeframe=1&Prov=XX&StationID=5415&","Year=","&Month=","&Day="]
[1959,7,23,"http://climate.weatheroffice.gc.ca/climateData/hourlydata_e.html?timeframe=1&Prov=XX&StationID=5415&Year=1959&Month=7&Day=23",null,"http://climate.weatheroffice.gc.ca/climateData/hourlydata_e.html?timeframe=1&Prov=XX&StationID=5415&","Year=","&Month=","&Day="]
[1959,7,24,"http://climate.weatheroffice.gc.ca/climateData/hourlydata_e.html?timeframe=1&Prov=XX&StationID=5415&Year=1959&Month=7&Day=24",null,"http://climate.weatheroffice.gc.ca/climateData/hourlydata_e.html?timeframe=1&Prov=XX&StationID=5415&","Year=","&Month=","&Day="]
[1959,7,25,"http://climate.weatheroffice.gc.ca/climateData/hourlydata_e.html?timeframe=1&Prov=XX&StationID=5415&Year=1959&Month=7&Day=25",null,"http://climate.weatheroffice.gc.ca/climateData/hourlydata_e.html?timeframe=1&Prov=XX&StationID=5415&","Year=","&Month=","&Day="]
[1959,7,26,"http://climate.weatheroffice.gc.ca/climateData/hourlydata_e.html?timeframe=1&Prov=XX&StationID=5415&Year=1959&Month=7&Day=26",null,"http://climate.weatheroffice.gc.ca/climateData/hourlydata_e.html?timeframe=1&Prov=XX&StationID=5415&","Year=","&Month=","&Day="]
[1959,7,27,"http://climate.weatheroffice.gc.ca/climateData/hourlydata_e.html?timeframe=1&Prov=XX&StationID=5415&Year=1959&Month=7&Day=27",null,"http://climate.weatheroffice.gc.ca/climateData/hourlydata_e.html?timeframe=1&Prov=XX&StationID=5415&","Year=","&Month=","&Day="]
[1959,7,28,"http://climate.weatheroffice.gc.ca/climateData/hourlydata_e.html?timeframe=1&Prov=XX&StationID=5415&Year=1959&Month=7&Day=28",null,"http://climate.weatheroffice.gc.ca/climateData/hourlydata_e.html?timeframe=1&Prov=XX&StationID=5415&","Year=","&Month=","&Day="]
[1959,7,29,"http://climate.weatheroffice.gc.ca/climateData/hourlydata_e.html?timeframe=1&Prov=XX&StationID=5415&Year=1959&Month=7&Day=29",null,"http://climate.weatheroffice.gc.ca/climateData/hourlydata_e.html?timeframe=1&Prov=XX&StationID=5415&","Year=","&Month=","&Day="]
[1959,7,30,"http://climate.weatheroffice.gc.ca/climateData/hourlydata_e.html?timeframe=1&Prov=XX&StationID=5415&Year=1959&Month=7&Day=30",null,"http://climate.weatheroffice.gc.ca/climateData/hourlydata_e.html?timeframe=1&Prov=XX&StationID=5415&","Year=","&Month=","&Day="]
[1959,7,31,"http://climate.weatheroffice.gc.ca/climateData/hourlydata_e.html?timeframe=1&Prov=XX&StationID=5415&Year=1959&Month=7&Day=31",null,"http://climate.weatheroffice.gc.ca/climateData/hourlydata_e.html?timeframe=1&Prov=XX&StationID=5415&","Year=","&Month=","&Day="]
[1959,8,1,"http://climate.weatheroffice.gc.ca/climateData/hourlydata_e.html?timeframe=1&Prov=XX&StationID=5415&Year=1959&Month=8&Day=1",null,"http://climate.weatheroffice.gc.ca/climateData/hourlydata_e.html?timeframe=1&Prov=XX&StationID=5415&","Year=","&Month=","&Day="]
[1959,8,2,"http://climate.weatheroffice.gc.ca/climateData/hourlydata_e.html?timeframe=1&Prov=XX&StationID=5415&Year=1959&Month=8&Day=2",null,"http://climate.weatheroffice.gc.ca/climateData/hourlydata_e.html?timeframe=1&Prov=XX&StationID=5415&","Year=","&Month=","&Day="]
[1959,8,3,"http://climate.weatheroffice.gc.ca/climateData/hourlydata_e.html?timeframe=1&Prov=XX&StationID=5415&Year=1959&Month=8&Day=3",null,"http://climate.weatheroffice.gc.ca/climateData/hourlydata_e.html?timeframe=1&Prov=XX&StationID=5415&","Year=","&Month=","&Day="]
[1959,8,4,"http://climate.weatheroffice.gc.ca/climateData/hourlydata_e.html?timeframe=1&Prov=XX&StationID=5415&Year=1959&Month=8&Day=4",null,"http://climate.weatheroffice.gc.ca/climateData/hourlydata_e.html?timeframe=1&Prov=XX&StationID=5415&","Year=","&Month=","&Day="]
[1959,8,5,"http://climate.weatheroffice.gc.ca/climateData/hourlydata_e.html?timeframe=1&Prov=XX&StationID=5415&Year=1959&Month=8&Day=5",null,"http://climate.weatheroffice.gc.ca/climateData/hourlydata_e.html?timeframe=1&Prov=XX&StationID=5415&","Year=","&Month=","&Day="]
[1959,8,6,"http://climate.weatheroffice.gc.ca/climateData/hourlydata_e.html?timeframe=1&Prov=XX&StationID=5415&Year=1959&Month=8&Day=6",null,"http://climate.weatheroffice.gc.ca/climateData/hourlydata_e.html?timeframe=1&Prov=XX&StationID=5415&","Year=","&Month=","&Day="]
[1959,8,7,"http://climate.weatheroffice.gc.ca/climateData/hourlydata_e.html?timeframe=1&Prov=XX&StationID=5415&Year=1959&Month=8&Day=7",null,"http://climate.weatheroffice.gc.ca/climateData/hourlydata_e.html?timeframe=1&Prov=XX&StationID=5415&","Year=","&Month=","&Day="]
[1959,8,8,"http://climate.weatheroffice.gc.ca/climateData/hourlydata_e.html?timeframe=1&Prov=XX&StationID=5415&Year=1959&Month=8&Day=8",null,"http://climate.weatheroffice.gc.ca/climateData/hourlydata_e.html?timeframe=1&Prov=XX&StationID=5415&","Year=","&Month=","&Day="]
[1959,8,9,"http://climate.weatheroffice.gc.ca/climateData/hourlydata_e.html?timeframe=1&Prov=XX&StationID=5415&Year=1959&Month=8&Day=9",null,"http://climate.weatheroffice.gc.ca/climateData/hourlydata_e.html?timeframe=1&Prov=XX&StationID=5415&","Year=","&Month=","&Day="]
[1959,8,10,"http://climate.weatheroffice.gc.ca/climateData/hourlydata_e.html?timeframe=1&Prov=XX&StationID=5415&Year=1959&Month=8&Day=10",null,"http://climate.weatheroffice.gc.ca/climateData/hourlydata_e.html?timeframe=1&Prov=XX&StationID=5415&","Year=","&Month=","&Day="]
[1959,8,11,"http://climate.weatheroffice.gc.ca/climateData/hourlydata_e.html?timeframe=1&Prov=XX&StationID=5415&Year=1959&Month=8&Day=11",null,"http://climate.weatheroffice.gc.ca/climateData/hourlydata_e.html?timeframe=1&Prov=XX&StationID=5415&","Year=","&Month=","&Day="]
[1959,8,12,"http://climate.weatheroffice.gc.ca/climateData/hourlydata_e.html?timeframe=1&Prov=XX&StationID=5415&Year=1959&Month=8&Day=12",null,"http://climate.weatheroffice.gc.ca/climateData/hourlydata_e.html?timeframe=1&Prov=XX&StationID=5415&","Year=","&Month=","&Day="]
[1959,8,13,"http://climate.weatheroffice.gc.ca/climateData/hourlydata_e.html?timeframe=1&Prov=XX&StationID=5415&Year=1959&Month=8&Day=13",null,"http://climate.weatheroffice.gc.ca/climateData/hourlydata_e.html?timeframe=1&Prov=XX&StationID=5415&","Year=","&Month=","&Day="]
[1959,8,14,"http://climate.weatheroffice.gc.ca/climateData/hourlydata_e.html?timeframe=1&Prov=XX&StationID=5415&Year=1959&Month=8&Day=14",null,"http://climate.weatheroffice.gc.ca/climateData/hourlydata_e.html?timeframe=1&Prov=XX&StationID=5415&","Year=","&Month=","&Day="]
[1959,8,15,"http://climate.weatheroffice.gc.ca/climateData/hourlydata_e.html?timeframe=1&Prov=XX&StationID=5415&Year=1959&Month=8&Day=15",null,"http://climate.weatheroffice.gc.ca/climateData/hourlydata_e.html?timeframe=1&Prov=XX&StationID=5415&","Year=","&Month=","&Day="]
[1959,8,16,"http://climate.weatheroffice.gc.ca/climateData/hourlydata_e.html?timeframe=1&Prov=XX&StationID=5415&Year=1959&Month=8&Day=16",null,"http://climate.weatheroffice.gc.ca/climateData/hourlydata_e.html?timeframe=1&Prov=XX&StationID=5415&","Year=","&Month=","&Day="]
[1959,8,17,"http://climate.weatheroffice.gc.ca/climateData/hourlydata_e.html?timeframe=1&Prov=XX&StationID=5415&Year=1959&Month=8&Day=17",null,"http://climate.weatheroffice.gc.ca/climateData/hourlydata_e.html?timeframe=1&Prov=XX&StationID=5415&","Year=","&Month=","&Day="]
[1959,8,18,"http://climate.weatheroffice.gc.ca/climateData/hourlydata_e.html?timeframe=1&Prov=XX&StationID=5415&Year=1959&Month=8&Day=18",null,"http://climate.weatheroffice.gc.ca/climateData/hourlydata_e.html?timeframe=1&Prov=XX&StationID=5415&","Year=","&Month=","&Day="]
[1959,8,19,"http://climate.weatheroffice.gc.ca/climateData/hourlydata_e.html?timeframe=1&Prov=XX&StationID=5415&Year=1959&Month=8&Day=19",null,"http://climate.weatheroffice.gc.ca/climateData/hourlydata_e.html?timeframe=1&Prov=XX&StationID=5415&","Year=","&Month=","&Day="]
[1959,8,20,"http://climate.weatheroffice.gc.ca/climateData/hourlydata_e.html?timeframe=1&Prov=XX&StationID=5415&Year=1959&Month=8&Day=20",null,"http://climate.weatheroffice.gc.ca/climateData/hourlydata_e.html?timeframe=1&Prov=XX&StationID=5415&","Year=","&Month=","&Day="]
[1959,8,21,"http://climate.weatheroffice.gc.ca/climateData/hourlydata_e.html?timeframe=1&Prov=XX&StationID=5415&Year=1959&Month=8&Day=21",null,"http://climate.weatheroffice.gc.ca/climateData/hourlydata_e.html?timeframe=1&Prov=XX&StationID=5415&","Year=","&Month=","&Day="]
[1959,8,22,"http://climate.weatheroffice.gc.ca/climateData/hourlydata_e.html?timeframe=1&Prov=XX&StationID=5415&Year=1959&Month=8&Day=22",null,"http://climate.weatheroffice.gc.ca/climateData/hourlydata_e.html?timeframe=1&Prov=XX&StationID=5415&","Year=","&Month=","&Day="]
[1959,8,23,"http://climate.weatheroffice.gc.ca/climateData/hourlydata_e.html?timeframe=1&Prov=XX&StationID=5415&Year=1959&Month=8&Day=23",null,"http://climate.weatheroffice.gc.ca/climateData/hourlydata_e.html?timeframe=1&Prov=XX&StationID=5415&","Year=","&Month=","&Day="]
[1959,8,24,"http://climate.weatheroffice.gc.ca/climateData/hourlydata_e.html?timeframe=1&Prov=XX&StationID=5415&Year=1959&Month=8&Day=24",null,"http://climate.weatheroffice.gc.ca/climateData/hourlydata_e.html?timeframe=1&Prov=XX&StationID=5415&","Year=","&Month=","&Day="]
[1959,8,25,"http://climate.weatheroffice.gc.ca/climateData/hourlydata_e.html?timeframe=1&Prov=XX&StationID=5415&Year=1959&Month=8&Day=25",null,"http://climate.weatheroffice.gc.ca/climateData/hourlydata_e.html?timeframe=1&Prov=XX&StationID=5415&","Year=","&Month=","&Day="]
[1959,8,26,"http://climate.weatheroffice.gc.ca/climateData/hourlydata_e.html?timeframe=1&Prov=XX&StationID=5415&Year=1959&Month=8&Day=26",null,"http://climate.weatheroffice.gc.ca/climateData/hourlydata_e.html?timeframe=1&Prov=XX&StationID=5415&","Year=","&Month=","&Day="]
[1959,8,27,"http://climate.weatheroffice.gc.ca/climateData/hourlydata_e.html?timeframe=1&Prov=XX&StationID=5415&Year=1959&Month=8&Day=27",null,"http://climate.weatheroffice.gc.ca/climateData/hourlydata_e.html?timeframe=1&Prov=XX&StationID=5415&","Year=","&Month=","&Day="]
[1959,8,28,"http://climate.weatheroffice.gc.ca/climateData/hourlydata_e.html?timeframe=1&Prov=XX&StationID=5415&Year=1959&Month=8&Day=28",null,"http://climate.weatheroffice.gc.ca/climateData/hourlydata_e.html?timeframe=1&Prov=XX&StationID=5415&","Year=","&Month=","&Day="]
[1959,8,29,"http://climate.weatheroffice.gc.ca/climateData/hourlydata_e.html?timeframe=1&Prov=XX&StationID=5415&Year=1959&Month=8&Day=29",null,"http://climate.weatheroffice.gc.ca/climateData/hourlydata_e.html?timeframe=1&Prov=XX&StationID=5415&","Year=","&Month=","&Day="]
[1959,8,30,"http://climate.weatheroffice.gc.ca/climateData/hourlydata_e.html?timeframe=1&Prov=XX&StationID=5415&Year=1959&Month=8&Day=30",null,"http://climate.weatheroffice.gc.ca/climateData/hourlydata_e.html?timeframe=1&Prov=XX&StationID=5415&","Year=","&Month=","&Day="]
[1959,8,31,"http://climate.weatheroffice.gc.ca/climateData/hourlydata_e.html?timeframe=1&Prov=XX&StationID=5415&Year=1959&Month=8&Day=31",null,"http://climate.weatheroffice.gc.ca/climateData/hourlydata_e.html?timeframe=1&Prov=XX&StationID=5415&","Year=","&Month=","&Day="]
[1959,9,1,"http://climate.weatheroffice.gc.ca/climateData/hourlydata_e.html?timeframe=1&Prov=XX&StationID=5415&Year=1959&Month=9&Day=1",null,"http://climate.weatheroffice.gc.ca/climateData/hourlydata_e.html?timeframe=1&Prov=XX&StationID=5415&","Year=","&Month=","&Day="]
[1959,9,2,"http://climate.weatheroffice.gc.ca/climateData/hourlydata_e.html?timeframe=1&Prov=XX&StationID=5415&Year=1959&Month=9&Day=2",null,"http://climate.weatheroffice.gc.ca/climateData/hourlydata_e.html?timeframe=1&Prov=XX&StationID=5415&","Year=","&Month=","&Day="]
[1959,9,3,"http://climate.weatheroffice.gc.ca/climateData/hourlydata_e.html?timeframe=1&Prov=XX&StationID=5415&Year=1959&Month=9&Day=3",null,"http://climate.weatheroffice.gc.ca/climateData/hourlydata_e.html?timeframe=1&Prov=XX&StationID=5415&","Year=","&Month=","&Day="]
[1959,9,4,"http://climate.weatheroffice.gc.ca/climateData/hourlydata_e.html?timeframe=1&Prov=XX&StationID=5415&Year=1959&Month=9&Day=4",null,"http://climate.weatheroffice.gc.ca/climateData/hourlydata_e.html?timeframe=1&Prov=XX&StationID=5415&","Year=","&Month=","&Day="]
[1959,9,5,"http://climate.weatheroffice.gc.ca/climateData/hourlydata_e.html?timeframe=1&Prov=XX&StationID=5415&Year=1959&Month=9&Day=5",null,"http://climate.weatheroffice.gc.ca/climateData/hourlydata_e.html?timeframe=1&Prov=XX&StationID=5415&","Year=","&Month=","&Day="]
[1959,9,6,"http://climate.weatheroffice.gc.ca/climateData/hourlydata_e.html?timeframe=1&Prov=XX&StationID=5415&Year=1959&Month=9&Day=6",null,"http://climate.weatheroffice.gc.ca/climateData/hourlydata_e.html?timeframe=1&Prov=XX&StationID=5415&","Year=","&Month=","&Day="]
[1959,9,7,"http://climate.weatheroffice.gc.ca/climateData/hourlydata_e.html?timeframe=1&Prov=XX&StationID=5415&Year=1959&Month=9&Day=7",null,"http://climate.weatheroffice.gc.ca/climateData/hourlydata_e.html?timeframe=1&Prov=XX&StationID=5415&","Year=","&Month=","&Day="]
[1959,9,8,"http://climate.weatheroffice.gc.ca/climateData/hourlydata_e.html?timeframe=1&Prov=XX&StationID=5415&Year=1959&Month=9&Day=8",null,"http://climate.weatheroffice.gc.ca/climateData/hourlydata_e.html?timeframe=1&Prov=XX&StationID=5415&","Year=","&Month=","&Day="]
[1959,9,9,"http://climate.weatheroffice.gc.ca/climateData/hourlydata_e.html?timeframe=1&Prov=XX&StationID=5415&Year=1959&Month=9&Day=9",null,"http://climate.weatheroffice.gc.ca/climateData/hourlydata_e.html?timeframe=1&Prov=XX&StationID=5415&","Year=","&Month=","&Day="]
[1959,9,10,{"$f":"+F258&G258&A258&H258&B258&I258&C258","v":"http://climate.weatheroffice.gc.ca/climateData/hourlydata_e.html?timeframe=1&Prov=XX&StationID=5415&Year=1959&Month=9&Day=10"},null,"http://climate.weatheroffice.gc.ca/climateData/hourlydata_e.html?timeframe=1&Prov=XX&StationID=5415&","Year=","&Month=","&Day="]
[{"$f":"+A258","v":1959},{"$f":"+B258","v":9},{"$f":"1+C258","v":11},"http://climate.weatheroffice.gc.ca/climateData/hourlydata_e.html?timeframe=1&Prov=XX&StationID=5415&Year=1959&Month=9&Day=11",null,"http://climate.weatheroffice.gc.ca/climateData/hourlydata_e.html?timeframe=1&Prov=XX&StationID=5415&","Year=","&Month=","&Day="]
[1959,9,12,"http://climate.weatheroffice.gc.ca/climateData/hourlydata_e.html?timeframe=1&Prov=XX&StationID=5415&Year=1959&Month=9&Day=12",null,"http://climate.weatheroffice.gc.ca/climateData/hourlydata_e.html?timeframe=1&Prov=XX&StationID=5415&","Year=","&Month=","&Day="]
[1959,9,13,"http://climate.weatheroffice.gc.ca/climateData/hourlydata_e.html?timeframe=1&Prov=XX&StationID=5415&Year=1959&Month=9&Day=13",null,"http://climate.weatheroffice.gc.ca/climateData/hourlydata_e.html?timeframe=1&Prov=XX&StationID=5415&","Year=","&Month=","&Day="]
[1959,9,14,"http://climate.weatheroffice.gc.ca/climateData/hourlydata_e.html?timeframe=1&Prov=XX&StationID=5415&Year=1959&Month=9&Day=14",null,"http://climate.weatheroffice.gc.ca/climateData/hourlydata_e.html?timeframe=1&Prov=XX&StationID=5415&","Year=","&Month=","&Day="]
[1959,9,15,"http://climate.weatheroffice.gc.ca/climateData/hourlydata_e.html?timeframe=1&Prov=XX&StationID=5415&Year=1959&Month=9&Day=15",null,"http://climate.weatheroffice.gc.ca/climateData/hourlydata_e.html?timeframe=1&Prov=XX&StationID=5415&","Year=","&Month=","&Day="]
[1959,9,16,"http://climate.weatheroffice.gc.ca/climateData/hourlydata_e.html?timeframe=1&Prov=XX&StationID=5415&Year=1959&Month=9&Day=16",null,"http://climate.weatheroffice.gc.ca/climateData/hourlydata_e.html?timeframe=1&Prov=XX&StationID=5415&","Year=","&Month=","&Day="]
[1959,9,17,"http://climate.weatheroffice.gc.ca/climateData/hourlydata_e.html?timeframe=1&Prov=XX&StationID=5415&Year=1959&Month=9&Day=17",null,"http://climate.weatheroffice.gc.ca/climateData/hourlydata_e.html?timeframe=1&Prov=XX&StationID=5415&","Year=","&Month=","&Day="]
[1959,9,18,"http://climate.weatheroffice.gc.ca/climateData/hourlydata_e.html?timeframe=1&Prov=XX&StationID=5415&Year=1959&Month=9&Day=18",null,"http://climate.weatheroffice.gc.ca/climateData/hourlydata_e.html?timeframe=1&Prov=XX&StationID=5415&","Year=","&Month=","&Day="]
[1959,9,19,"http://climate.weatheroffice.gc.ca/climateData/hourlydata_e.html?timeframe=1&Prov=XX&StationID=5415&Year=1959&Month=9&Day=19",null,"http://climate.weatheroffice.gc.ca/climateData/hourlydata_e.html?timeframe=1&Prov=XX&StationID=5415&","Year=","&Month=","&Day="]
[1959,9,20,"http://climate.weatheroffice.gc.ca/climateData/hourlydata_e.html?timeframe=1&Prov=XX&StationID=5415&Year=1959&Month=9&Day=20",null,"http://climate.weatheroffice.gc.ca/climateData/hourlydata_e.html?timeframe=1&Prov=XX&StationID=5415&","Year=","&Month=","&Day="]
[1959,9,21,"http://climate.weatheroffice.gc.ca/climateData/hourlydata_e.html?timeframe=1&Prov=XX&StationID=5415&Year=1959&Month=9&Day=21",null,"http://climate.weatheroffice.gc.ca/climateData/hourlydata_e.html?timeframe=1&Prov=XX&StationID=5415&","Year=","&Month=","&Day="]
[1959,9,22,"http://climate.weatheroffice.gc.ca/climateData/hourlydata_e.html?timeframe=1&Prov=XX&StationID=5415&Year=1959&Month=9&Day=22",null,"http://climate.weatheroffice.gc.ca/climateData/hourlydata_e.html?timeframe=1&Prov=XX&StationID=5415&","Year=","&Month=","&Day="]
[1959,9,23,"http://climate.weatheroffice.gc.ca/climateData/hourlydata_e.html?timeframe=1&Prov=XX&StationID=5415&Year=1959&Month=9&Day=23",null,"http://climate.weatheroffice.gc.ca/climateData/hourlydata_e.html?timeframe=1&Prov=XX&StationID=5415&","Year=","&Month=","&Day="]
[1959,9,24,"http://climate.weatheroffice.gc.ca/climateData/hourlydata_e.html?timeframe=1&Prov=XX&StationID=5415&Year=1959&Month=9&Day=24",null,"http://climate.weatheroffice.gc.ca/climateData/hourlydata_e.html?timeframe=1&Prov=XX&StationID=5415&","Year=","&Month=","&Day="]
[1959,9,25,"http://climate.weatheroffice.gc.ca/climateData/hourlydata_e.html?timeframe=1&Prov=XX&StationID=5415&Year=1959&Month=9&Day=25",null,"http://climate.weatheroffice.gc.ca/climateData/hourlydata_e.html?timeframe=1&Prov=XX&StationID=5415&","Year=","&Month=","&Day="]
[1959,9,26,"http://climate.weatheroffice.gc.ca/climateData/hourlydata_e.html?timeframe=1&Prov=XX&StationID=5415&Year=1959&Month=9&Day=26",null,"http://climate.weatheroffice.gc.ca/climateData/hourlydata_e.html?timeframe=1&Prov=XX&StationID=5415&","Year=","&Month=","&Day="]
[1959,9,27,"http://climate.weatheroffice.gc.ca/climateData/hourlydata_e.html?timeframe=1&Prov=XX&StationID=5415&Year=1959&Month=9&Day=27",null,"http://climate.weatheroffice.gc.ca/climateData/hourlydata_e.html?timeframe=1&Prov=XX&StationID=5415&","Year=","&Month=","&Day="]
[1959,9,28,"http://climate.weatheroffice.gc.ca/climateData/hourlydata_e.html?timeframe=1&Prov=XX&StationID=5415&Year=1959&Month=9&Day=28",null,"http://climate.weatheroffice.gc.ca/climateData/hourlydata_e.html?timeframe=1&Prov=XX&StationID=5415&","Year=","&Month=","&Day="]
[1959,9,29,"http://climate.weatheroffice.gc.ca/climateData/hourlydata_e.html?timeframe=1&Prov=XX&StationID=5415&Year=1959&Month=9&Day=29",null,"http://climate.weatheroffice.gc.ca/climateData/hourlydata_e.html?timeframe=1&Prov=XX&StationID=5415&","Year=","&Month=","&Day="]
[1959,9,30,"http://climate.weatheroffice.gc.ca/climateData/hourlydata_e.html?timeframe=1&Prov=XX&StationID=5415&Year=1959&Month=9&Day=30",null,"http://climate.weatheroffice.gc.ca/climateData/hourlydata_e.html?timeframe=1&Prov=XX&StationID=5415&","Year=","&Month=","&Day="]
[1959,9,31,"http://climate.weatheroffice.gc.ca/climateData/hourlydata_e.html?timeframe=1&Prov=XX&StationID=5415&Year=1959&Month=9&Day=31",null,"http://climate.weatheroffice.gc.ca/climateData/hourlydata_e.html?timeframe=1&Prov=XX&StationID=5415&","Year=","&Month=","&Day="]
[1959,10,1,"http://climate.weatheroffice.gc.ca/climateData/hourlydata_e.html?timeframe=1&Prov=XX&StationID=5415&Year=1959&Month=10&Day=1",null,"http://climate.weatheroffice.gc.ca/climateData/hourlydata_e.html?timeframe=1&Prov=XX&StationID=5415&","Year=","&Month=","&Day="]
[1959,10,2,"http://climate.weatheroffice.gc.ca/climateData/hourlydata_e.html?timeframe=1&Prov=XX&StationID=5415&Year=1959&Month=10&Day=2",null,"http://climate.weatheroffice.gc.ca/climateData/hourlydata_e.html?timeframe=1&Prov=XX&StationID=5415&","Year=","&Month=","&Day="]
[1959,10,3,"http://climate.weatheroffice.gc.ca/climateData/hourlydata_e.html?timeframe=1&Prov=XX&StationID=5415&Year=1959&Month=10&Day=3",null,"http://climate.weatheroffice.gc.ca/climateData/hourlydata_e.html?timeframe=1&Prov=XX&StationID=5415&","Year=","&Month=","&Day="]
[1959,10,4,"http://climate.weatheroffice.gc.ca/climateData/hourlydata_e.html?timeframe=1&Prov=XX&StationID=5415&Year=1959&Month=10&Day=4",null,"http://climate.weatheroffice.gc.ca/climateData/hourlydata_e.html?timeframe=1&Prov=XX&StationID=5415&","Year=","&Month=","&Day="]
[1959,10,5,"http://climate.weatheroffice.gc.ca/climateData/hourlydata_e.html?timeframe=1&Prov=XX&StationID=5415&Year=1959&Month=10&Day=5",null,"http://climate.weatheroffice.gc.ca/climateData/hourlydata_e.html?timeframe=1&Prov=XX&StationID=5415&","Year=","&Month=","&Day="]
[1959,10,6,"http://climate.weatheroffice.gc.ca/climateData/hourlydata_e.html?timeframe=1&Prov=XX&StationID=5415&Year=1959&Month=10&Day=6",null,"http://climate.weatheroffice.gc.ca/climateData/hourlydata_e.html?timeframe=1&Prov=XX&StationID=5415&","Year=","&Month=","&Day="]
[1959,10,7,"http://climate.weatheroffice.gc.ca/climateData/hourlydata_e.html?timeframe=1&Prov=XX&StationID=5415&Year=1959&Month=10&Day=7",null,"http://climate.weatheroffice.gc.ca/climateData/hourlydata_e.html?timeframe=1&Prov=XX&StationID=5415&","Year=","&Month=","&Day="]
[1959,10,8,"http://climate.weatheroffice.gc.ca/climateData/hourlydata_e.html?timeframe=1&Prov=XX&StationID=5415&Year=1959&Month=10&Day=8",null,"http://climate.weatheroffice.gc.ca/climateData/hourlydata_e.html?timeframe=1&Prov=XX&StationID=5415&","Year=","&Month=","&Day="]
[1959,10,9,"http://climate.weatheroffice.gc.ca/climateData/hourlydata_e.html?timeframe=1&Prov=XX&StationID=5415&Year=1959&Month=10&Day=9",null,"http://climate.weatheroffice.gc.ca/climateData/hourlydata_e.html?timeframe=1&Prov=XX&StationID=5415&","Year=","&Month=","&Day="]
[1959,10,10,"http://climate.weatheroffice.gc.ca/climateData/hourlydata_e.html?timeframe=1&Prov=XX&StationID=5415&Year=1959&Month=10&Day=10",null,"http://climate.weatheroffice.gc.ca/climateData/hourlydata_e.html?timeframe=1&Prov=XX&StationID=5415&","Year=","&Month=","&Day="]
[1959,10,11,"http://climate.weatheroffice.gc.ca/climateData/hourlydata_e.html?timeframe=1&Prov=XX&StationID=5415&Year=1959&Month=10&Day=11",null,"http://climate.weatheroffice.gc.ca/climateData/hourlydata_e.html?timeframe=1&Prov=XX&StationID=5415&","Year=","&Month=","&Day="]
[1959,10,12,"http://climate.weatheroffice.gc.ca/climateData/hourlydata_e.html?timeframe=1&Prov=XX&StationID=5415&Year=1959&Month=10&Day=12",null,"http://climate.weatheroffice.gc.ca/climateData/hourlydata_e.html?timeframe=1&Prov=XX&StationID=5415&","Year=","&Month=","&Day="]
[1959,10,13,"http://climate.weatheroffice.gc.ca/climateData/hourlydata_e.html?timeframe=1&Prov=XX&StationID=5415&Year=1959&Month=10&Day=13",null,"http://climate.weatheroffice.gc.ca/climateData/hourlydata_e.html?timeframe=1&Prov=XX&StationID=5415&","Year=","&Month=","&Day="]
[1959,10,14,"http://climate.weatheroffice.gc.ca/climateData/hourlydata_e.html?timeframe=1&Prov=XX&StationID=5415&Year=1959&Month=10&Day=14",null,"http://climate.weatheroffice.gc.ca/climateData/hourlydata_e.html?timeframe=1&Prov=XX&StationID=5415&","Year=","&Month=","&Day="]
[1959,10,15,"http://climate.weatheroffice.gc.ca/climateData/hourlydata_e.html?timeframe=1&Prov=XX&StationID=5415&Year=1959&Month=10&Day=15",null,"http://climate.weatheroffice.gc.ca/climateData/hourlydata_e.html?timeframe=1&Prov=XX&StationID=5415&","Year=","&Month=","&Day="]
[1959,10,16,"http://climate.weatheroffice.gc.ca/climateData/hourlydata_e.html?timeframe=1&Prov=XX&StationID=5415&Year=1959&Month=10&Day=16",null,"http://climate.weatheroffice.gc.ca/climateData/hourlydata_e.html?timeframe=1&Prov=XX&StationID=5415&","Year=","&Month=","&Day="]
[1959,10,17,"http://climate.weatheroffice.gc.ca/climateData/hourlydata_e.html?timeframe=1&Prov=XX&StationID=5415&Year=1959&Month=10&Day=17",null,"http://climate.weatheroffice.gc.ca/climateData/hourlydata_e.html?timeframe=1&Prov=XX&StationID=5415&","Year=","&Month=","&Day="]
[1959,10,18,"http://climate.weatheroffice.gc.ca/climateData/hourlydata_e.html?timeframe=1&Prov=XX&StationID=5415&Year=1959&Month=10&Day=18",null,"http://climate.weatheroffice.gc.ca/climateData/hourlydata_e.html?timeframe=1&Prov=XX&StationID=5415&","Year=","&Month=","&Day="]
[1959,10,19,"http://climate.weatheroffice.gc.ca/climateData/hourlydata_e.html?timeframe=1&Prov=XX&StationID=5415&Year=1959&Month=10&Day=19",null,"http://climate.weatheroffice.gc.ca/climateData/hourlydata_e.html?timeframe=1&Prov=XX&StationID=5415&","Year=","&Month=","&Day="]
[1959,10,20,"http://climate.weatheroffice.gc.ca/climateData/hourlydata_e.html?timeframe=1&Prov=XX&StationID=5415&Year=1959&Month=10&Day=20",null,"http://climate.weatheroffice.gc.ca/climateData/hourlydata_e.html?timeframe=1&Prov=XX&StationID=5415&","Year=","&Month=","&Day="]
[1959,10,21,"http://climate.weatheroffice.gc.ca/climateData/hourlydata_e.html?timeframe=1&Prov=XX&StationID=5415&Year=1959&Month=10&Day=21",null,"http://climate.weatheroffice.gc.ca/climateData/hourlydata_e.html?timeframe=1&Prov=XX&StationID=5415&","Year=","&Month=","&Day="]
[1959,10,22,"http://climate.weatheroffice.gc.ca/climateData/hourlydata_e.html?timeframe=1&Prov=XX&StationID=5415&Year=1959&Month=10&Day=22",null,"http://climate.weatheroffice.gc.ca/climateData/hourlydata_e.html?timeframe=1&Prov=XX&StationID=5415&","Year=","&Month=","&Day="]
[1959,10,23,"http://climate.weatheroffice.gc.ca/climateData/hourlydata_e.html?timeframe=1&Prov=XX&StationID=5415&Year=1959&Month=10&Day=23",null,"http://climate.weatheroffice.gc.ca/climateData/hourlydata_e.html?timeframe=1&Prov=XX&StationID=5415&","Year=","&Month=","&Day="]
[1959,10,24,"http://climate.weatheroffice.gc.ca/climateData/hourlydata_e.html?timeframe=1&Prov=XX&StationID=5415&Year=1959&Month=10&Day=24",null,"http://climate.weatheroffice.gc.ca/climateData/hourlydata_e.html?timeframe=1&Prov=XX&StationID=5415&","Year=","&Month=","&Day="]
[1959,10,25,"http://climate.weatheroffice.gc.ca/climateData/hourlydata_e.html?timeframe=1&Prov=XX&StationID=5415&Year=1959&Month=10&Day=25",null,"http://climate.weatheroffice.gc.ca/climateData/hourlydata_e.html?timeframe=1&Prov=XX&StationID=5415&","Year=","&Month=","&Day="]
[1959,10,26,"http://climate.weatheroffice.gc.ca/climateData/hourlydata_e.html?timeframe=1&Prov=XX&StationID=5415&Year=1959&Month=10&Day=26",null,"http://climate.weatheroffice.gc.ca/climateData/hourlydata_e.html?timeframe=1&Prov=XX&StationID=5415&","Year=","&Month=","&Day="]
[1959,10,27,"http://climate.weatheroffice.gc.ca/climateData/hourlydata_e.html?timeframe=1&Prov=XX&StationID=5415&Year=1959&Month=10&Day=27",null,"http://climate.weatheroffice.gc.ca/climateData/hourlydata_e.html?timeframe=1&Prov=XX&StationID=5415&","Year=","&Month=","&Day="]
[1959,10,28,"http://climate.weatheroffice.gc.ca/climateData/hourlydata_e.html?timeframe=1&Prov=XX&StationID=5415&Year=1959&Month=10&Day=28",null,"http://climate.weatheroffice.gc.ca/climateData/hourlydata_e.html?timeframe=1&Prov=XX&StationID=5415&","Year=","&Month=","&Day="]
[1959,10,29,"http://climate.weatheroffice.gc.ca/climateData/hourlydata_e.html?timeframe=1&Prov=XX&StationID=5415&Year=1959&Month=10&Day=29",null,"http://climate.weatheroffice.gc.ca/climateData/hourlydata_e.html?timeframe=1&Prov=XX&StationID=5415&","Year=","&Month=","&Day="]
[1959,10,30,"http://climate.weatheroffice.gc.ca/climateData/hourlydata_e.html?timeframe=1&Prov=XX&StationID=5415&Year=1959&Month=10&Day=30",null,"http://climate.weatheroffice.gc.ca/climateData/hourlydata_e.html?timeframe=1&Prov=XX&StationID=5415&","Year=","&Month=","&Day="]
[1959,10,31,"http://climate.weatheroffice.gc.ca/climateData/hourlydata_e.html?timeframe=1&Prov=XX&StationID=5415&Year=1959&Month=10&Day=31",null,"http://climate.weatheroffice.gc.ca/climateData/hourlydata_e.html?timeframe=1&Prov=XX&StationID=5415&","Year=","&Month=","&Day="]
[1959,11,1,"http://climate.weatheroffice.gc.ca/climateData/hourlydata_e.html?timeframe=1&Prov=XX&StationID=5415&Year=1959&Month=11&Day=1",null,"http://climate.weatheroffice.gc.ca/climateData/hourlydata_e.html?timeframe=1&Prov=XX&StationID=5415&","Year=","&Month=","&Day="]
[1959,11,2,"http://climate.weatheroffice.gc.ca/climateData/hourlydata_e.html?timeframe=1&Prov=XX&StationID=5415&Year=1959&Month=11&Day=2",null,"http://climate.weatheroffice.gc.ca/climateData/hourlydata_e.html?timeframe=1&Prov=XX&StationID=5415&","Year=","&Month=","&Day="]
[1959,11,3,"http://climate.weatheroffice.gc.ca/climateData/hourlydata_e.html?timeframe=1&Prov=XX&StationID=5415&Year=1959&Month=11&Day=3",null,"http://climate.weatheroffice.gc.ca/climateData/hourlydata_e.html?timeframe=1&Prov=XX&StationID=5415&","Year=","&Month=","&Day="]
[1959,11,4,"http://climate.weatheroffice.gc.ca/climateData/hourlydata_e.html?timeframe=1&Prov=XX&StationID=5415&Year=1959&Month=11&Day=4",null,"http://climate.weatheroffice.gc.ca/climateData/hourlydata_e.html?timeframe=1&Prov=XX&StationID=5415&","Year=","&Month=","&Day="]
[1959,11,5,"http://climate.weatheroffice.gc.ca/climateData/hourlydata_e.html?timeframe=1&Prov=XX&StationID=5415&Year=1959&Month=11&Day=5",null,"http://climate.weatheroffice.gc.ca/climateData/hourlydata_e.html?timeframe=1&Prov=XX&StationID=5415&","Year=","&Month=","&Day="]
[1959,11,6,"http://climate.weatheroffice.gc.ca/climateData/hourlydata_e.html?timeframe=1&Prov=XX&StationID=5415&Year=1959&Month=11&Day=6",null,"http://climate.weatheroffice.gc.ca/climateData/hourlydata_e.html?timeframe=1&Prov=XX&StationID=5415&","Year=","&Month=","&Day="]
[1959,11,7,"http://climate.weatheroffice.gc.ca/climateData/hourlydata_e.html?timeframe=1&Prov=XX&StationID=5415&Year=1959&Month=11&Day=7",null,"http://climate.weatheroffice.gc.ca/climateData/hourlydata_e.html?timeframe=1&Prov=XX&StationID=5415&","Year=","&Month=","&Day="]
[1959,11,8,"http://climate.weatheroffice.gc.ca/climateData/hourlydata_e.html?timeframe=1&Prov=XX&StationID=5415&Year=1959&Month=11&Day=8",null,"http://climate.weatheroffice.gc.ca/climateData/hourlydata_e.html?timeframe=1&Prov=XX&StationID=5415&","Year=","&Month=","&Day="]
[1959,11,9,"http://climate.weatheroffice.gc.ca/climateData/hourlydata_e.html?timeframe=1&Prov=XX&StationID=5415&Year=1959&Month=11&Day=9",null,"http://climate.weatheroffice.gc.ca/climateData/hourlydata_e.html?timeframe=1&Prov=XX&StationID=5415&","Year=","&Month=","&Day="]
[1959,11,10,"http://climate.weatheroffice.gc.ca/climateData/hourlydata_e.html?timeframe=1&Prov=XX&StationID=5415&Year=1959&Month=11&Day=10",null,"http://climate.weatheroffice.gc.ca/climateData/hourlydata_e.html?timeframe=1&Prov=XX&StationID=5415&","Year=","&Month=","&Day="]
[1959,11,11,"http://climate.weatheroffice.gc.ca/climateData/hourlydata_e.html?timeframe=1&Prov=XX&StationID=5415&Year=1959&Month=11&Day=11",null,"http://climate.weatheroffice.gc.ca/climateData/hourlydata_e.html?timeframe=1&Prov=XX&StationID=5415&","Year=","&Month=","&Day="]
[1959,11,12,{"$f":"+F322&G322&A322&H322&B322&I322&C322","v":"http://climate.weatheroffice.gc.ca/climateData/hourlydata_e.html?timeframe=1&Prov=XX&StationID=5415&Year=1959&Month=11&Day=12"},null,"http://climate.weatheroffice.gc.ca/climateData/hourlydata_e.html?timeframe=1&Prov=XX&StationID=5415&","Year=","&Month=","&Day="]
[{"$f":"+A322","v":1959},{"$f":"+B322","v":11},{"$f":"1+C322","v":13},"http://climate.weatheroffice.gc.ca/climateData/hourlydata_e.html?timeframe=1&Prov=XX&StationID=5415&Year=1959&Month=11&Day=13",null,"http://climate.weatheroffice.gc.ca/climateData/hourlydata_e.html?timeframe=1&Prov=XX&StationID=5415&","Year=","&Month=","&Day="]
[1959,11,14,"http://climate.weatheroffice.gc.ca/climateData/hourlydata_e.html?timeframe=1&Prov=XX&StationID=5415&Year=1959&Month=11&Day=14",null,"http://climate.weatheroffice.gc.ca/climateData/hourlydata_e.html?timeframe=1&Prov=XX&StationID=5415&","Year=","&Month=","&Day="]
[1959,11,15,"http://climate.weatheroffice.gc.ca/climateData/hourlydata_e.html?timeframe=1&Prov=XX&StationID=5415&Year=1959&Month=11&Day=15",null,"http://climate.weatheroffice.gc.ca/climateData/hourlydata_e.html?timeframe=1&Prov=XX&StationID=5415&","Year=","&Month=","&Day="]
[1959,11,16,"http://climate.weatheroffice.gc.ca/climateData/hourlydata_e.html?timeframe=1&Prov=XX&StationID=5415&Year=1959&Month=11&Day=16",null,"http://climate.weatheroffice.gc.ca/climateData/hourlydata_e.html?timeframe=1&Prov=XX&StationID=5415&","Year=","&Month=","&Day="]
[1959,11,17,"http://climate.weatheroffice.gc.ca/climateData/hourlydata_e.html?timeframe=1&Prov=XX&StationID=5415&Year=1959&Month=11&Day=17",null,"http://climate.weatheroffice.gc.ca/climateData/hourlydata_e.html?timeframe=1&Prov=XX&StationID=5415&","Year=","&Month=","&Day="]
[1959,11,18,"http://climate.weatheroffice.gc.ca/climateData/hourlydata_e.html?timeframe=1&Prov=XX&StationID=5415&Year=1959&Month=11&Day=18",null,"http://climate.weatheroffice.gc.ca/climateData/hourlydata_e.html?timeframe=1&Prov=XX&StationID=5415&","Year=","&Month=","&Day="]
[1959,11,19,"http://climate.weatheroffice.gc.ca/climateData/hourlydata_e.html?timeframe=1&Prov=XX&StationID=5415&Year=1959&Month=11&Day=19",null,"http://climate.weatheroffice.gc.ca/climateData/hourlydata_e.html?timeframe=1&Prov=XX&StationID=5415&","Year=","&Month=","&Day="]
[1959,11,20,"http://climate.weatheroffice.gc.ca/climateData/hourlydata_e.html?timeframe=1&Prov=XX&StationID=5415&Year=1959&Month=11&Day=20",null,"http://climate.weatheroffice.gc.ca/climateData/hourlydata_e.html?timeframe=1&Prov=XX&StationID=5415&","Year=","&Month=","&Day="]
[1959,11,21,"http://climate.weatheroffice.gc.ca/climateData/hourlydata_e.html?timeframe=1&Prov=XX&StationID=5415&Year=1959&Month=11&Day=21",null,"http://climate.weatheroffice.gc.ca/climateData/hourlydata_e.html?timeframe=1&Prov=XX&StationID=5415&","Year=","&Month=","&Day="]
[1959,11,22,"http://climate.weatheroffice.gc.ca/climateData/hourlydata_e.html?timeframe=1&Prov=XX&StationID=5415&Year=1959&Month=11&Day=22",null,"http://climate.weatheroffice.gc.ca/climateData/hourlydata_e.html?timeframe=1&Prov=XX&StationID=5415&","Year=","&Month=","&Day="]
[1959,11,23,"http://climate.weatheroffice.gc.ca/climateData/hourlydata_e.html?timeframe=1&Prov=XX&StationID=5415&Year=1959&Month=11&Day=23",null,"http://climate.weatheroffice.gc.ca/climateData/hourlydata_e.html?timeframe=1&Prov=XX&StationID=5415&","Year=","&Month=","&Day="]
[1959,11,24,"http://climate.weatheroffice.gc.ca/climateData/hourlydata_e.html?timeframe=1&Prov=XX&StationID=5415&Year=1959&Month=11&Day=24",null,"http://climate.weatheroffice.gc.ca/climateData/hourlydata_e.html?timeframe=1&Prov=XX&StationID=5415&","Year=","&Month=","&Day="]
[1959,11,25,"http://climate.weatheroffice.gc.ca/climateData/hourlydata_e.html?timeframe=1&Prov=XX&StationID=5415&Year=1959&Month=11&Day=25",null,"http://climate.weatheroffice.gc.ca/climateData/hourlydata_e.html?timeframe=1&Prov=XX&StationID=5415&","Year=","&Month=","&Day="]
[1959,11,26,"http://climate.weatheroffice.gc.ca/climateData/hourlydata_e.html?timeframe=1&Prov=XX&StationID=5415&Year=1959&Month=11&Day=26",null,"http://climate.weatheroffice.gc.ca/climateData/hourlydata_e.html?timeframe=1&Prov=XX&StationID=5415&","Year=","&Month=","&Day="]
[1959,11,27,"http://climate.weatheroffice.gc.ca/climateData/hourlydata_e.html?timeframe=1&Prov=XX&StationID=5415&Year=1959&Month=11&Day=27",null,"http://climate.weatheroffice.gc.ca/climateData/hourlydata_e.html?timeframe=1&Prov=XX&StationID=5415&","Year=","&Month=","&Day="]
[1959,11,28,"http://climate.weatheroffice.gc.ca/climateData/hourlydata_e.html?timeframe=1&Prov=XX&StationID=5415&Year=1959&Month=11&Day=28",null,"http://climate.weatheroffice.gc.ca/climateData/hourlydata_e.html?timeframe=1&Prov=XX&StationID=5415&","Year=","&Month=","&Day="]
[1959,11,29,"http://climate.weatheroffice.gc.ca/climateData/hourlydata_e.html?timeframe=1&Prov=XX&StationID=5415&Year=1959&Month=11&Day=29",null,"http://climate.weatheroffice.gc.ca/climateData/hourlydata_e.html?timeframe=1&Prov=XX&StationID=5415&","Year=","&Month=","&Day="]
[1959,11,30,"http://climate.weatheroffice.gc.ca/climateData/hourlydata_e.html?timeframe=1&Prov=XX&StationID=5415&Year=1959&Month=11&Day=30",null,"http://climate.weatheroffice.gc.ca/climateData/hourlydata_e.html?timeframe=1&Prov=XX&StationID=5415&","Year=","&Month=","&Day="]
[1959,11,31,"http://climate.weatheroffice.gc.ca/climateData/hourlydata_e.html?timeframe=1&Prov=XX&StationID=5415&Year=1959&Month=11&Day=31",null,"http://climate.weatheroffice.gc.ca/climateData/hourlydata_e.html?timeframe=1&Prov=XX&StationID=5415&","Year=","&Month=","&Day="]
[1959,12,1,"http://climate.weatheroffice.gc.ca/climateData/hourlydata_e.html?timeframe=1&Prov=XX&StationID=5415&Year=1959&Month=12&Day=1",null,"http://climate.weatheroffice.gc.ca/climateData/hourlydata_e.html?timeframe=1&Prov=XX&StationID=5415&","Year=","&Month=","&Day="]
[1959,12,2,"http://climate.weatheroffice.gc.ca/climateData/hourlydata_e.html?timeframe=1&Prov=XX&StationID=5415&Year=1959&Month=12&Day=2",null,"http://climate.weatheroffice.gc.ca/climateData/hourlydata_e.html?timeframe=1&Prov=XX&StationID=5415&","Year=","&Month=","&Day="]
[1959,12,3,"http://climate.weatheroffice.gc.ca/climateData/hourlydata_e.html?timeframe=1&Prov=XX&StationID=5415&Year=1959&Month=12&Day=3",null,"http://climate.weatheroffice.gc.ca/climateData/hourlydata_e.html?timeframe=1&Prov=XX&StationID=5415&","Year=","&Month=","&Day="]
[1959,12,4,"http://climate.weatheroffice.gc.ca/climateData/hourlydata_e.html?timeframe=1&Prov=XX&StationID=5415&Year=1959&Month=12&Day=4",null,"http://climate.weatheroffice.gc.ca/climateData/hourlydata_e.html?timeframe=1&Prov=XX&StationID=5415&","Year=","&Month=","&Day="]
[1959,12,5,"http://climate.weatheroffice.gc.ca/climateData/hourlydata_e.html?timeframe=1&Prov=XX&StationID=5415&Year=1959&Month=12&Day=5",null,"http://climate.weatheroffice.gc.ca/climateData/hourlydata_e.html?timeframe=1&Prov=XX&StationID=5415&","Year=","&Month=","&Day="]
[1959,12,6,"http://climate.weatheroffice.gc.ca/climateData/hourlydata_e.html?timeframe=1&Prov=XX&StationID=5415&Year=1959&Month=12&Day=6",null,"http://climate.weatheroffice.gc.ca/climateData/hourlydata_e.html?timeframe=1&Prov=XX&StationID=5415&","Year=","&Month=","&Day="]
[1959,12,7,"http://climate.weatheroffice.gc.ca/climateData/hourlydata_e.html?timeframe=1&Prov=XX&StationID=5415&Year=1959&Month=12&Day=7",null,"http://climate.weatheroffice.gc.ca/climateData/hourlydata_e.html?timeframe=1&Prov=XX&StationID=5415&","Year=","&Month=","&Day="]
[1959,12,8,"http://climate.weatheroffice.gc.ca/climateData/hourlydata_e.html?timeframe=1&Prov=XX&StationID=5415&Year=1959&Month=12&Day=8",null,"http://climate.weatheroffice.gc.ca/climateData/hourlydata_e.html?timeframe=1&Prov=XX&StationID=5415&","Year=","&Month=","&Day="]
[1959,12,9,"http://climate.weatheroffice.gc.ca/climateData/hourlydata_e.html?timeframe=1&Prov=XX&StationID=5415&Year=1959&Month=12&Day=9",null,"http://climate.weatheroffice.gc.ca/climateData/hourlydata_e.html?timeframe=1&Prov=XX&StationID=5415&","Year=","&Month=","&Day="]
[1959,12,10,"http://climate.weatheroffice.gc.ca/climateData/hourlydata_e.html?timeframe=1&Prov=XX&StationID=5415&Year=1959&Month=12&Day=10",null,"http://climate.weatheroffice.gc.ca/climateData/hourlydata_e.html?timeframe=1&Prov=XX&StationID=5415&","Year=","&Month=","&Day="]
[1959,12,11,"http://climate.weatheroffice.gc.ca/climateData/hourlydata_e.html?timeframe=1&Prov=XX&StationID=5415&Year=1959&Month=12&Day=11",null,"http://climate.weatheroffice.gc.ca/climateData/hourlydata_e.html?timeframe=1&Prov=XX&StationID=5415&","Year=","&Month=","&Day="]
[1959,12,12,"http://climate.weatheroffice.gc.ca/climateData/hourlydata_e.html?timeframe=1&Prov=XX&StationID=5415&Year=1959&Month=12&Day=12",null,"http://climate.weatheroffice.gc.ca/climateData/hourlydata_e.html?timeframe=1&Prov=XX&StationID=5415&","Year=","&Month=","&Day="]
[1959,12,13,"http://climate.weatheroffice.gc.ca/climateData/hourlydata_e.html?timeframe=1&Prov=XX&StationID=5415&Year=1959&Month=12&Day=13",null,"http://climate.weatheroffice.gc.ca/climateData/hourlydata_e.html?timeframe=1&Prov=XX&StationID=5415&","Year=","&Month=","&Day="]
[1959,12,14,"http://climate.weatheroffice.gc.ca/climateData/hourlydata_e.html?timeframe=1&Prov=XX&StationID=5415&Year=1959&Month=12&Day=14",null,"http://climate.weatheroffice.gc.ca/climateData/hourlydata_e.html?timeframe=1&Prov=XX&StationID=5415&","Year=","&Month=","&Day="]
[1959,12,15,"http://climate.weatheroffice.gc.ca/climateData/hourlydata_e.html?timeframe=1&Prov=XX&StationID=5415&Year=1959&Month=12&Day=15",null,"http://climate.weatheroffice.gc.ca/climateData/hourlydata_e.html?timeframe=1&Prov=XX&StationID=5415&","Year=","&Month=","&Day="]
[1959,12,16,"http://climate.weatheroffice.gc.ca/climateData/hourlydata_e.html?timeframe=1&Prov=XX&StationID=5415&Year=1959&Month=12&Day=16",null,"http://climate.weatheroffice.gc.ca/climateData/hourlydata_e.html?timeframe=1&Prov=XX&StationID=5415&","Year=","&Month=","&Day="]
[1959,12,17,"http://climate.weatheroffice.gc.ca/climateData/hourlydata_e.html?timeframe=1&Prov=XX&StationID=5415&Year=1959&Month=12&Day=17",null,"http://climate.weatheroffice.gc.ca/climateData/hourlydata_e.html?timeframe=1&Prov=XX&StationID=5415&","Year=","&Month=","&Day="]
[1959,12,18,"http://climate.weatheroffice.gc.ca/climateData/hourlydata_e.html?timeframe=1&Prov=XX&StationID=5415&Year=1959&Month=12&Day=18",null,"http://climate.weatheroffice.gc.ca/climateData/hourlydata_e.html?timeframe=1&Prov=XX&StationID=5415&","Year=","&Month=","&Day="]
[1959,12,19,"http://climate.weatheroffice.gc.ca/climateData/hourlydata_e.html?timeframe=1&Prov=XX&StationID=5415&Year=1959&Month=12&Day=19",null,"http://climate.weatheroffice.gc.ca/climateData/hourlydata_e.html?timeframe=1&Prov=XX&StationID=5415&","Year=","&Month=","&Day="]
[1959,12,20,"http://climate.weatheroffice.gc.ca/climateData/hourlydata_e.html?timeframe=1&Prov=XX&StationID=5415&Year=1959&Month=12&Day=20",null,"http://climate.weatheroffice.gc.ca/climateData/hourlydata_e.html?timeframe=1&Prov=XX&StationID=5415&","Year=","&Month=","&Day="]
[1959,12,21,"http://climate.weatheroffice.gc.ca/climateData/hourlydata_e.html?timeframe=1&Prov=XX&StationID=5415&Year=1959&Month=12&Day=21",null,"http://climate.weatheroffice.gc.ca/climateData/hourlydata_e.html?timeframe=1&Prov=XX&StationID=5415&","Year=","&Month=","&Day="]
[1959,12,22,"http://climate.weatheroffice.gc.ca/climateData/hourlydata_e.html?timeframe=1&Prov=XX&StationID=5415&Year=1959&Month=12&Day=22",null,"http://climate.weatheroffice.gc.ca/climateData/hourlydata_e.html?timeframe=1&Prov=XX&StationID=5415&","Year=","&Month=","&Day="]
[1959,12,23,"http://climate.weatheroffice.gc.ca/climateData/hourlydata_e.html?timeframe=1&Prov=XX&StationID=5415&Year=1959&Month=12&Day=23",null,"http://climate.weatheroffice.gc.ca/climateData/hourlydata_e.html?timeframe=1&Prov=XX&StationID=5415&","Year=","&Month=","&Day="]
[1959,12,24,"http://climate.weatheroffice.gc.ca/climateData/hourlydata_e.html?timeframe=1&Prov=XX&StationID=5415&Year=1959&Month=12&Day=24",null,"http://climate.weatheroffice.gc.ca/climateData/hourlydata_e.html?timeframe=1&Prov=XX&StationID=5415&","Year=","&Month=","&Day="]
[1959,12,25,"http://climate.weatheroffice.gc.ca/climateData/hourlydata_e.html?timeframe=1&Prov=XX&StationID=5415&Year=1959&Month=12&Day=25",null,"http://climate.weatheroffice.gc.ca/climateData/hourlydata_e.html?timeframe=1&Prov=XX&StationID=5415&","Year=","&Month=","&Day="]
[1959,12,26,"http://climate.weatheroffice.gc.ca/climateData/hourlydata_e.html?timeframe=1&Prov=XX&StationID=5415&Year=1959&Month=12&Day=26",null,"http://climate.weatheroffice.gc.ca/climateData/hourlydata_e.html?timeframe=1&Prov=XX&StationID=5415&","Year=","&Month=","&Day="]
[1959,12,27,"http://climate.weatheroffice.gc.ca/climateData/hourlydata_e.html?timeframe=1&Prov=XX&StationID=5415&Year=1959&Month=12&Day=27",null,"http://climate.weatheroffice.gc.ca/climateData/hourlydata_e.html?timeframe=1&Prov=XX&StationID=5415&","Year=","&Month=","&Day="]
[1959,12,28,"http://climate.weatheroffice.gc.ca/climateData/hourlydata_e.html?timeframe=1&Prov=XX&StationID=5415&Year=1959&Month=12&Day=28",null,"http://climate.weatheroffice.gc.ca/climateData/hourlydata_e.html?timeframe=1&Prov=XX&StationID=5415&","Year=","&Month=","&Day="]
[1959,12,29,"http://climate.weatheroffice.gc.ca/climateData/hourlydata_e.html?timeframe=1&Prov=XX&StationID=5415&Year=1959&Month=12&Day=29",null,"http://climate.weatheroffice.gc.ca/climateData/hourlydata_e.html?timeframe=1&Prov=XX&StationID=5415&","Year=","&Month=","&Day="]
[1959,12,30,"http://climate.weatheroffice.gc.ca/climateData/hourlydata_e.html?timeframe=1&Prov=XX&StationID=5415&Year=1959&Month=12&Day=30",null,"http://climate.weatheroffice.gc.ca/climateData/hourlydata_e.html?timeframe=1&Prov=XX&StationID=5415&","Year=","&Month=","&Day="]
[1959,12,31,"http://climate.weatheroffice.gc.ca/climateData/hourlydata_e.html?timeframe=1&Prov=XX&StationID=5415&Year=1959&Month=12&Day=31",null,"http://climate.weatheroffice.gc.ca/climateData/hourlydata_e.html?timeframe=1&Prov=XX&StationID=5415&","Year=","&Month=","&Day="]

{"sheet":"data","index":1,"n_rows":0,"n_cols":0,"rows_kept":0,"cut":false,"hidden":false,"merged":[]}